{"text_format":"1","workbook":"xlsx","n_sheets":4,"sheets":["Western","H-J Division Points","Hunter-Jumper","Western Games"],"not_rendered":{"charts":0,"images":0,"macros":0,"external_links":0,"defined_names":0,"comments":0,"pivot_tables":0},"unopened":[],"bounds":{"document_bytes":16777216,"sheet_cells":100000,"rows_first":2000,"rows_last":500,"rows_between":2000,"halvings":0,"cell_chars":16384,"cell_head_chars":4096},"cells_cut":0,"cells_raw":0,"read":"whole","date_system":"1900"}

{"sheet":"Western","index":0,"n_rows":398,"n_cols":24,"rows_kept":398,"cut":false,"hidden":false,"merged":[[398,0,398,12],[0,19,2,22],[358,0,358,12],[367,0,367,12],[376,0,376,12],[389,0,389,12],[324,0,324,12],[330,0,330,12],[331,0,331,12],[340,0,340,12],[352,0,352,12],[282,0,282,12],[283,0,283,12],[294,0,294,12],[306,0,306,12],[315,0,315,12],[246,0,246,12],[255,0,255,12],[256,0,256,12],[262,0,262,12],[269,0,269,12],[205,0,205,12],[206,0,206,12],[216,0,216,12],[229,0,229,12],[237,0,237,12],[200,0,200,12],[201,0,201,12],[202,0,202,12],[203,0,203,12],[199,0,199,12],[167,0,167,12],[168,0,168,12],[176,0,176,12],[186,0,186,12],[198,0,198,12],[157,0,157,12],[156,0,156,12],[87,0,87,12],[96,0,96,12],[105,0,105,12],[112,0,112,12],[121,0,121,12],[0,23,2,24],[128,0,128,12],[134,0,134,12],[141,0,141,12],[148,0,148,12],[79,0,79,12],[0,4,0,11],[3,0,3,12],[33,0,33,12],[53,0,53,12],[61,0,61,12],[69,0,69,12]]}
[null,null,null,null,"PLACINGS",null,null,null,null,null,null,null,"TOTAL ",null,null,"\"X\" is not entered",null,null,null,"Reminder: ONLY  riders who are DHRC members (year membership) qualify for Year-End Awards",null,null,null,"* Qualifies for Year End Awards"]
["Class #","Exhibitor#","EXHIBITOR","HORSE","2019-06-23","pts","2019-07-14","pts","2019-07-28","pts","2019-08-11","pts","POINTS","Champion","Reserve","\"srtch\" scratched the class"]
["HALTER DIVISION",null,null,null,null,null,null,null,null,null,null,null,null,null,null,"\"E\"  eliminated"]
["1 - Youth (18yrs and under)"]
["*",1845,"Emily Anderson","Macs Mia Bella","1st",5,"1st",6,"1st",5,"1st",3,{"$f":"F5+H5+J5+L5","v":19}]
["*","323 701","Brooklyn Burke","Bring Mama Flowers","2nd",4,"2nd",5,"2nd",4,"2nd",2,15]
["*",347,"Leah Prosper","Topper","3rd",3,"4th",3,"4th",2,"X",null,8]
["*",330,"Gracie Costello","Lil Jimmy White Socks","5th",1,"5th",2,"3rd",3,"3rd",1,7]
[null,122,"Layla Drinkwater","Risk the Gold Girl","X",null,"3rd",4,"X",null,"X",null,4]
[null,343,"Priscilla Munevar-Pelton","Tally-Ho","4th",2,"6th",1,"5th",1,"X",null,4]
[null,null,null,null,null,null,null,null,null,null,null,null,{"$f":"F11+H11+J11+L11","v":0}]
[null,null,null,null,null,null,null,null,null,null,null,null,0]
[null,null,null,null,null,null,null,null,null,null,null,null,0]
[null,null,null,null,null,null,null,null,null,null,null,null,0]
["2 - Adult - Mare"]
["*",7132,"Colleen McFadden","Top Secret Recipe","X",null,"1st",6,"1st",6,"1st",4,{"$f":"F16+H16+J16+L16","v":16}]
["*",199,"Ashley Hauver","SE Lets Elope","1st",1,"3rd",1,"2nd",1,"2nd",1,{"$f":"F17+H17+J17+L17","v":4}]
[null,161,"Jennifer Laverty","Frosty All Starlight","X",null,"2nd",2,"X",null,"X",null,{"$f":"F18+H18+J18+L18","v":2}]
[null,null,null,null,null,null,null,null,null,null,null,null,{"$f":"F19+H19+J19+L19","v":0}]
[null,null,null,null,null,null,null,null,null,null,null,null,0]
[null,null,null,null,null,null,null,null,null,null,null,null,0]
[null,null,null,null,null,null,null,null,null,null,null,null,0]
["3 - Adult - Gelding-Stallion"]
["*",141,"Tracey Scott","Hez Flat Out Gifted","1st",6,"1st",4,"1st",5,"1st",3,{"$f":"F24+H24+J24+L24","v":18}]
["*",71,"Corey Wendelken","Mr. Big Time Money","4th",1,"2nd",3,"2nd",2,"2nd",2,{"$f":"F25+H25+J25+L25","v":8}]
["*",131,"Michelle Roger","Dream's My Dad","3rd",2,"4th",1,"3rd",1,"3rd",1,{"$f":"F26+H26+J26+L26","v":5}]
[null,566,"Laura Coburn","Fred","2nd",3,"X",null,"X",null,"X",null,{"$f":"F27+H27+J27+L27","v":3}]
[null,143,"Cindy Steele","Wrapped in Iron","X",null,"3rd",2,"X",null,"X",null,{"$f":"F28+H28+J28+L28","v":2}]
[null,null,null,null,null,null,null,null,null,null,null,null,{"$f":"F29+H29+J29+L29","v":0}]
[null,null,null,null,null,null,null,null,null,null,null,null,0]
[null,null,null,null,null,null,null,null,null,null,null,null,0]
[null,null,null,null,null,null,null,null,null,null,null,null,0]
["SHOWMANSHIP DIVISION"]
["5 - Small Fry (youth 8 yrs & under)"]
[null,122,"Layla Drinkwater","Risk the Gold Girl","X",null,"1st",1,"X",null,"X",null,{"$f":"F35+H35+J35+L35","v":1}]
[null,null,null,null,"X",null,"X",null,"X",null,"X",null,0]
[null,null,null,null,"X",null,"X",null,"X",null,"X",null,0]
[null,null,null,null,"X",null,"X",null,"X",null,"X",null,0]
[null,null,null,null,"X",null,"X",null,"X",null,"X",null,0]
[null,null,null,null,null,null,null,null,null,null,null,null,0]
[null,null,null,null,null,null,null,null,null,null,null,null,0]
[null,null,null,null,null,null,null,null,null,null,null,null,{"$f":"F42+H42+J42+L42","v":0}]
[null,null,null,null,null,null,null,null,null,null,null,null,0]
["6 - Youth 18 yrs & under"]
["*",1845,"Emily Anderson","Macs Mia Bella","2nd",3,"1st",5,"1st",5,"1st",3,{"$f":"F45+H45+J45+L45","v":16}]
["*","323 701","Brooklyn Burke","Bring Mama Flowers","1st",4,"2nd",4,"2nd",4,"2nd",2,{"$f":"F46+H46+J46+L46","v":14}]
["*",330,"Gracie Costello","Lil Jimmy White Socks","3rd",2,"3rd",3,"3rd",3,"3rd",1,{"$f":"F47+H47+J47+L47","v":9}]
[null,347,"Leah Prosper","Topper","X",null,"4th",2,"4th",2,"X",null,{"$f":"F48+H48+J48+L48","v":4}]
[null,343,"Priscilla Munevar-Pelton","Tally-Ho","4th",1,"5th",1,"5th",1,"X",null,{"$f":"F49+H49+J49+L49","v":3}]
[null,null,null,null,null,null,null,null,null,null,null,null,{"$f":"F50+H50+J50+L50","v":0}]
[null,null,null,null,null,null,null,null,null,null,null,null,0]
[null,null,null,null,null,null,null,null,null,null,null,null,0]
[null,null,null,null,null,null,null,null,null,null,null,null,0]
["7 - Adult"]
["*",141,"Tracey Scott","Hez Flat Out Gifted","1st",2,"1st",4,"2nd",1,"2nd",1,{"$f":"F55+H55+J55+L55","v":8}]
["*",71,"Corey Wendelken","Mr. Big Time Money","2nd",1,"2nd",3,"1st",2,"1st",2,{"$f":"F56+H56+J56+L56","v":8}]
[null,143,"Cindy Steele","Wrapped in Iron","X",null,"3rd",2,"X",null,"X",null,{"$f":"F57+H57+J57+L57","v":2}]
[null,161,"Jennifer Laverty","Frosty All Starlight","X",null,"4th",1,"X",null,"X",null,{"$f":"F58+H58+J58+L58","v":1}]
[null,null,null,null,null,null,null,null,null,null,null,null,{"$f":"F59+H59+J59+L59","v":0}]
[null,null,null,null,null,null,null,null,null,null,null,null,0]
[null,null,null,null,null,null,null,null,null,null,null,null,0]
["8 - Yearling Lunge Line"]
[null,null,null,null,"X",null,"X",null,"X",null,"X",null,0]
[null,null,null,null,"X",null,"X",null,"X",null,"X",null,0]
[null,null,null,null,"X",null,"X",null,"X",null,"X",null,0]
[null,null,null,null,"X",null,"X",null,"X",null,"X",null,0]
[null,null,null,null,"X",null,"X",null,"X",null,"X",null,0]
[null,null,null,null,null,null,null,null,null,null,null,null,0]
[null,null,null,null,null,null,null,null,null,null,null,null,0]
["9 - 2 yr old Lunge Line"]
[null,null,null,null,"X",null,"X",null,"X",null,"X",null,0]
[null,null,null,null,"X",null,"X",null,"X",null,"X",null,0]
[null,null,null,null,"X",null,"X",null,"X",null,"X",null,0]
[null,null,null,null,"X",null,"X",null,"X",null,"X",null,0]
[null,null,null,null,"X",null,"X",null,"X",null,"X",null,0]
[null,null,null,null,null,null,null,null,null,null,null,null,0]
[null,null,null,null,null,null,null,null,null,null,null,null,0]
[null,null,null,null,null,null,null,null,null,null,null,null,0]
["ENGLISH UNDER SADDLE"]
["10 - Youth - 18 and under"]
["*",347,"Leah Prosper","Topper","1st",2,"2nd",1,"2nd",1,"X",null,{"$f":"F81+H81+J81+L81","v":4}]
[null,343,"Priscilla Munevar-Pelton","Tally-Ho","2nd",1,"X",null,"1st",2,"X",null,{"$f":"F82+H82+J82+L82","v":3}]
[null,null,"Ava Pelton","Tally-Ho","X",null,"1st",2,"X",null,"X",null,{"$f":"F83+H83+J83+L83","v":2}]
[null,null,null,null,null,null,null,null,null,null,null,null,{"$f":"F84+H84+J84+L84","v":0}]
[null,null,null,null,null,null,null,null,null,null,null,null,0]
[null,null,null,null,null,null,null,null,null,null,null,null,0]
[null,null,null,null,null,null,null,null,null,null,null,null,{"$f":"F87+H87+J87+L87","v":0}]
["11 - Adult"]
["*",71,"Corey Wendelken","Mr. Big Time Money","1st",4,"1st",3,"1st",4,"2nd",1,{"$f":"F89+H89+J89+L89","v":12}]
["*",175,"Cheyanne Wheeler","The Western Flirt","3rd",2,"2nd",2,"3rd",2,"1st",2,{"$f":"F90+H90+J90+L90","v":8}]
[null,246,"Diane Pelton","Tally-Ho","2nd",3,"X",null,"4th",1,"X",null,{"$f":"F91+H91+J91+L91","v":4}]
[null,151,"Liz Craig","Scottie","X",null,"X",null,"2nd",3,"X",null,{"$f":"F92+H92+J92+L92","v":3}]
[null,141,"Tracey Scott","Hez Flat Out Gifted","4th",1,"3rd",1,"X",null,"X",null,{"$f":"F93+H93+J93+L93","v":2}]
[null,null,null,null,null,null,null,null,null,null,null,null,{"$f":"F94+H94+J94+L94","v":0}]
[null,null,null,null,null,null,null,null,null,null,null,null,0]
[null,null,null,null,null,null,null,null,null,null,null,null,{"$f":"F96+H96+J96+L96","v":0}]
["12 - Novice Adult"]
[null,null,null,null,"X",null,"X",null,"X",null,"X",null,{"$f":"F98+H98+J98+L98","v":0}]
[null,null,null,null,"X",null,"X",null,"X",null,"X",null,{"$f":"F99+H99+J99+L99","v":0}]
[null,null,null,null,"X",null,"X",null,"X",null,"X",null,0]
[null,null,null,null,"X",null,"X",null,"X",null,"X",null,0]
[null,null,null,null,"X",null,"X",null,"X",null,"X",null,0]
[null,null,null,null,null,null,null,null,null,null,null,null,0]
[null,null,null,null,null,null,null,null,null,null,null,null,0]
[null,null,null,null,null,null,null,null,null,null,null,null,0]
["13 - Adult Walk/Trot"]
["*",70,"Lindsay Wiggins","Zippos Time Machine","X",null,"2nd",1,"1st",1,"1st",1,{"$f":"F107+H107+J107+L107","v":3}]
[null,355,"Christine Robinson","Moxies Secret Design","X",null,"1st",2,"X",null,"X",null,{"$f":"F108+H108+J108+L108","v":2}]
[null,null,null,null,"X",null,null,null,null,null,null,null,{"$f":"F109+H109+J109+L109","v":0}]
[null,null,null,null,"X",null,null,null,null,null,null,null,{"$f":"F110+H110+J110+L110","v":0}]
[null,null,null,null,"X",null,null,null,null,null,null,null,{"$f":"F111+H111+J111+L111","v":0}]
[null,null,null,null,null,null,null,null,null,null,null,null,{"$f":"F112+H112+J112+L112","v":0}]
["14 - Youth Walk/Trot"]
["*",155,"Brooklyn Hawes","Love That Dog","X",null,"1st",2,"1st",2,"1st",3,{"$f":"F114+H114+J114+L114","v":7}]
["*",1845,"Emily Anderson","Macs Mia Bella","1st",1,"2nd",1,"2nd",1,"2nd",2,{"$f":"F115+H115+J115+L115","v":5}]
[null,306,"Scarlette Hucul","The Western Flirt","X",null,"X",null,"X",null,"3rd",1,1]
[null,null,null,null,null,null,null,null,null,null,null,null,0]
[null,null,null,null,null,null,null,null,null,null,null,null,0]
[null,null,null,null,null,null,null,null,null,null,null,null,0]
[null,null,null,null,null,null,null,null,null,null,null,null,0]
["ENGLISH EQUITATION DIVISION"]
["15 - Youth 18 yrs & under (WTC Pattern Class)"]
[null,343,"Priscilla Munevar-Pelton","Tally-Ho","1st",2,"1st",4,"1st",2,"X",null,{"$f":"F123+H123+J123+L123","v":8}]
["*",347,"Leah Prosper","Topper","2nd",1,"2nd",3,"2nd",1,"X",null,5]
[null,342,"Talia Brown","Bambi","X",null,"3rd",2,"X",null,"X",null,2]
[null,341,"Trinity Donovan","Park Place","X",null,"4th",1,"X",null,"X",null,1]
[null,null,null,null,null,null,null,null,null,null,null,null,0]
[null,null,null,null,null,null,null,null,null,null,null,null,0]
["16 - Adult (WTC Pattern Class)"]
["*",175,"Cheyanne Wheeler","The Western Flirt","1st",2,"2nd",2,"1st",2,"2nd",1,{"$f":"F130+H130+J130+L130","v":7}]
["*",71,"Corey Wendelken","Mr. Big Time Money","2nd",1,"1st",3,"2nd",1,"1st",2,{"$f":"F131+H131+J131+L131","v":7}]
[null,141,"Tracey Scott","Hez Flat Out Gifted","X",null,"3rd",1,"X",null,"X",null,1]
[null,null,null,null,null,null,null,null,null,null,null,null,0]
[null,null,null,null,null,null,null,null,null,null,null,null,0]
["17 - Novice Adult (WTC Pattern Class)"]
[null,null,null,null,"X",null,"X",null,"X",null,"X",null,0]
[null,null,null,null,"X",null,"X",null,"X",null,"X",null,0]
[null,null,null,null,"X",null,"X",null,"X",null,"X",null,0]
[null,null,null,null,"X",null,"X",null,"X",null,"X",null,0]
[null,null,null,null,"X",null,"X",null,"X",null,"X",null,0]
[null,null,null,null,null,null,null,null,null,null,null,null,0]
["18 - Adult Walk/Trot"]
["*",70,"Lindsay Wiggins","Zippos Time Machine","X",null,"2nd",1,"1st",1,"1st",1,{"$f":"F143+H143+J143+L143","v":3}]
[null,355,"Christine Robinson","Moxies Secret Design","X",null,"1st",2,"X",null,"X",null,2]
[null,null,null,null,"X",null,"X",null,null,null,null,null,0]
[null,null,null,null,"X",null,"X",null,null,null,null,null,0]
[null,null,null,null,"X",null,"X",null,null,null,null,null,0]
[null,null,null,null,null,null,null,null,null,null,null,null,0]
["19 - Youth Walk/Trot"]
["*",155,"Brooklyn Hawes","Love That Dog","X",null,"1st",2,"1st",2,"1st",2,{"$f":"F150+H150+J150+L150","v":6}]
["*",1845,"Emily Anderson","Macs Mia Bella","1st",2,"2nd",1,"2nd",1,"2nd",1,{"$f":"F151+H151+J151+L151","v":5}]
[null,335,"Mattea Pantelone","Holly","2nd",1,"X",null,"X",null,"X",null,{"$f":"F152+H152+J152+L152","v":1}]
[null,null,null,null,null,null,null,null,null,null,null,null,{"$f":"F153+H153+J153+L153","v":0}]
[null,null,null,null,null,null,null,null,null,null,null,null,{"$f":"F154+H154+J154+L154","v":0}]
[null,null,null,null,null,null,null,null,null,null,null,null,0]
[null,null,null,null,null,null,null,null,null,null,null,null,0]
["LEADLINE DIVISION"]
["20 - Leadline  (English/Western) - 8 yrs & under"]
["* H/J",294,"Imogen Ritwycken","Jack","1st",1,"1st",1,"1st",1,"1st",1,{"$f":"F159+H159+J159+L159","v":4}]
["*",156,"Sloan Scott","Color Me Coz","X",null,"1st",1,"1st",1,"1st",1,3]
["*",388,"Landon Hawes","Iceman","X",null,"1st",1,"1st",1,"1st",1,3]
["* H/J",377,"Willa Schouten","Bugs Bunny","X",null,"X",null,"1st",1,"1st",1,2]
[null,389,"Marlow Pelton","Tally-Ho","X",null,"1st",1,"X",null,"X",null,1]
[null,null,null,null,null,null,null,null,null,null,null,null,0]
[null,null,null,null,null,null,null,null,null,null,null,null,0]
[null,null,null,null,null,null,null,null,null,null,null,null,0]
[null,null,null,null,null,null,null,null,null,null,null,null,{"$f":"F167+H167+J167+L167","v":0}]
["COMMAND  DIVISION (ENGLISH/WESTERN)(WTC)"]
["21 - Elite (45 yrs & over)"]
["*",131,"Michelle Roger","Dream's My Dad","2nd",1,"X",null,"1st",3,"2nd",1,{"$f":"F170+H170+J170+L170","v":5}]
["*",345,"Donna Livingston","Juice","1st",2,"2nd",1,"3rd",1,"X",null,{"$f":"F171+H171+J171+L171","v":4}]
[null,162,"Christine Smith","Abbey","X",null,"X",null,"2nd",2,"1st",2,{"$f":"F172+H172+J172+L172","v":4}]
[null,533,"Andre Bourk","Frosty All Starlight","X",null,"1st",2,"X",null,"X",null,{"$f":"F173+H173+J173+L173","v":2}]
[null,null,null,null,null,null,null,null,null,null,null,null,{"$f":"F174+H174+J174+L174","v":0}]
[null,null,null,null,null,null,null,null,null,null,null,null,0]
[null,null,null,null,null,null,null,null,null,null,null,null,0]
["22 - Youth (18 yrs & under)"]
["*",330,"Gracie Costello","Lil Jimmy White Socks","4th",2,"2nd",4,"1st",5,"2nd",2,{"$f":"F178+H178+J178+L178","v":13}]
["*",347,"Leah Prosper","Topper","1st",5,"4th",2,"2nd",4,"X",null,11]
["*","323 701","Brooklyn Burke","Bring Mama Flowers","3rd",3,"1st",5,"4th",2,"3rd",1,11]
[null,176,"Ben Scharf","Destined to Dream","2nd",4,"X",null,"X",null,"1st",3,7]
[null,343,"Priscilla Munevar-Pelton","Tally-Ho","5th",1,"X",null,"3rd",3,"X",null,4]
[null,341,"Trinity Donovan","Park Place","X",null,"3rd",3,"X",null,"X",null,3]
[null,342,"Talia Brown","Bambi","X",null,"5th",1,"X",null,"X",null,1]
[null,375,"Eva Rose","Miss Molly","X",null,"X",null,"5th",1,"X",null,1]
[null,null,null,null,null,null,null,null,null,null,null,null,0]
["23 - Adult"]
["*",71,"Corey Wendelken","Mr. Big Time Money","2nd",5,"2nd",4,"1st",3,"1st",3,{"$f":"F188+H188+J188+L188","v":15}]
["*",175,"Cheyanne Wheeler","The Western Flirt","3rd",4,"3rd",3,"2nd",2,"2nd",2,11]
[null,128,"Renee Armstrong","Jista Prince Robin","1st",6,"X",null,"X",null,"X",null,6]
[null,46,"Andre Bourke","Nick","X",null,"1st",5,"X",null,"X",null,5]
["*",131,"Michelle Roger","Dream's My Dad","6th",1,"5th",1,"3rd",1,"3rd",1,4]
[null,295,"Larry Murray","Cali","4th",3,"X",null,"X",null,"X",null,3]
[null,129,"Melissa Leduc","Liberty","5th",2,"X",null,"X",null,"X",null,2]
[]
[null,null,null,null,null,null,null,null,null,null,null,null,{"$f":"F196+H196+J196+L196","v":0}]
[null,null,null,null,null,null,null,null,null,null,null,null,0]
[null,null,null,null,null,null,null,null,null,null,null,null,0]
["24 - Jackpot Command - Open - 20% to Club  (NO POINTS)"]
["25 - Green Horse - (ENGLISH/WESTERN)(WT/J) (NO POINTS)"]
["26 - Sit-A-Buck  (NO POINTS)"]
["27 - Egg & Spoon - Youth 18 yrs & under  (NO POINTS)"]
["28 - Water Class  (NO POINTS)"]
["29 - Costume - All ages  (NO POINTS)"]
[]
["WESTERN PLEASURE DIVISION"]
["30 - Youth (18 yrs & under)"]
["*",330,"Gracie Costello","Lil Jimmy White Socks","1st",5,"2nd",3,"1st",3,"1st",3,{"$f":"F208+H208+J208+L208","v":14}]
["*","323 701","Brooklyn Burke","Bring Mama Flowers","4th",2,"3rd",2,"2nd",2,"2nd",2,8]
["*",347,"Leah Prosper","Topper","2nd",4,"4th",1,"3rd",1,"X",null,6]
[null,348,"Katie Mbakulo","Indy","X",null,"1st",4,"X",null,"X",null,4]
[null,343,"Priscilla Munevar-Pelton","Tally","3rd",3,"X",null,"X",null,"X",null,3]
[null,176,"Ben Scharf","Destined to Dream","5th",1,"X",null,"X",null,"3rd",1,2]
[null,null,null,null,null,null,null,null,null,null,null,null,0]
[null,null,null,null,null,null,null,null,null,null,null,null,0]
[null,null,null,null,null,null,null,null,null,null,null,null,0]
["31 - Adult"]
["*",234,"Wendy Stewart","Just for Snickers","3rd",3,"2nd",5,"2nd",3,"X",null,{"$f":"F218+H218+J218+L218","v":11}]
["*",5418,"Elizabeth Anderson","Mac's Mia Bella","X",null,"1st",6,"1st",4,"3rd",1,11]
[null,141,"Tracey Scott","Hez Flat Out Gifted","1st",5,"4th",3,"X",null,"X",null,8]
["*",71,"Corey Wendelken","Mr Big Time Money","4th",2,"6th",1,"3rd",2,"2nd",2,7]
[null,131,"Michelle Roger","Dream's My Dad","2nd",4,"5th",2,"X",null,"X",null,6]
["*",175,"Cheyanne Wheeler","The Western Flirt","5th",1,null,null,"4th",1,"1st",3,5]
[null,533,"Andre Bourck","Frosty All Starlight","X",null,"3rd",4,"X",null,"X",null,4]
[null,143,"Cindy Steele","Wrapped in Iron","X",null,null,null,"X",null,"X",null,0]
[null,null,null,null,null,null,null,null,null,null,null,null,0]
[null,null,null,null,null,null,null,null,null,null,null,null,0]
[null,null,null,null,null,null,null,null,null,null,null,null,{"$f":"F228+H228+J228+L228","v":0}]
[null,null,null,null,null,null,null,null,null,null,null,null,0]
["32 - Novice Adult"]
[null,162,"Christine Smith","Abbey","X",null,"X",null,"X",null,"1st",1,{"$f":"F231+H231+J231+L231","v":1}]
[null,null,null,null,"X",null,"X",null,"X",null,"X",null,0]
[null,null,null,null,"X",null,"X",null,"X",null,"X",null,0]
[null,null,null,null,"X",null,"X",null,"X",null,"X",null,0]
[null,null,null,null,"X",null,"X",null,"X",null,"X",null,0]
[null,null,null,null,null,null,null,null,null,null,null,null,0]
[null,null,null,null,null,null,null,null,null,null,null,null,0]
["33 - Adult Walk/Trot"]
["*",70,"Lindsay Wiggins","Zippos Time Machine","X",null,"2nd",2,"2nd",2,"2nd",3,{"$f":"F239+H239+J239+L239","v":7}]
["*",199,"Ashley Hauver","SE Lets Elope","2nd",2,"3rd",1,"3rd",1,"3rd",2,6]
["*",327,"Alec Hucul","DF Taken Advantage","3rd",1,"1st",3,"X",null,"4th",1,5]
[null,239,"Bev Johnson","Lexie","X",null,"X",null,"X",null,"1st",4,4]
[null,285,"Dominique Murray","Whisper","1st",3,"X",null,"X",null,"X",null,3]
[null,null,"Cheyanne Wheeler","DF Taken Advantage","X",null,"X",null,"1st",3,"X",null,3]
[null,null,null,null,null,null,null,null,null,null,null,null,0]
[null,null,null,null,null,null,null,null,null,null,null,null,{"$f":"F246+H246+J246+L246","v":0}]
["34 - Youth Walk/Trot"]
["*",1845,"Emily Anderson","Macs Mia Bella","1st",3,"1st",3,"1st",2,"1st",3,11]
["*",306,"Scarlette Hucul","The Western Flirt","2nd",2,"2nd",2,"2nd",1,"2nd",2,7]
[null,194,"Clare Scharf","Catch My Draft","3rd",1,"X",null,"X",null,"3rd",1,2]
[null,122,"Layla Drinkwater","Risk the Gold Girl","X",null,"3rd",1,"X",null,"X",null,1]
[null,null,null,null,null,null,null,null,null,null,null,null,0]
[null,null,null,null,null,null,null,null,null,null,null,null,0]
[null,null,null,null,null,null,null,null,null,null,null,null,0]
[null,null,null,null,null,null,null,null,null,null,null,null,0]
["REINING DIVISION"]
["35 - Adult - Pattern 6 (same for all four shows)"]
[null,533,"Andre Bourck","Frosty All Starlight","X",null,"1st",2,"X",null,"X",null,{"$f":"F258+H258+J258+L258","v":2}]
[null,295,"Larry Murray","Cali","1st",1,"X",null,"X",null,"X",null,{"$f":"F259+H259+J259+L259","v":1}]
[null,46,"Andre Bourck","Nick","X",null,"2nd",1,"X",null,"X",null,{"$f":"F260+H260+J260+L260","v":1}]
[null,null,null,null,null,null,null,null,null,null,null,null,{"$f":"F261+H261+J261+L261","v":0}]
[null,null,null,null,null,null,null,null,null,null,null,null,0]
["36 - Youth - Pattern 6 (same for all four shows)"]
[null,348,"Katie Mbakulo","Indy","X",null,"1st",1,"X",null,"X",null,{"$f":"F264+H264+J264+L264","v":1}]
[null,null,null,null,"X",null,"X",null,"X",null,"X",null,0]
[null,null,null,null,"X",null,"X",null,"X",null,"X",null,0]
[null,null,null,null,"X",null,"X",null,"X",null,"X",null,0]
[null,null,null,null,"X",null,"X",null,"X",null,"X",null,0]
[null,null,null,null,null,null,null,null,null,null,null,null,0]
["37 -  Ranch Riding - Pattern 3 (same for all four shows)"]
["*",234,"Wendy Stewart","Just for Snickers","1st",6,"1st",4,"2nd",1,"X",null,{"$f":"F271+H271+J271+L271","v":11}]
["*",71,"Corey Wendelken","Mr Big Time Money","5th",2,"2nd",3,"1st",2,"1st",2,9]
[null,129,"Melissa Leduc","Liberty","2nd",5,"X",null,"X",null,"X",null,5]
[null,295,"Larry Murray","Cali","3rd",4,"X",null,"X",null,"X",null,4]
[null,128,"Renee Armstrong","Jista Prince Robin","4th",3,"X",null,"X",null,"X",null,3]
[null,533,"Andre Bourck","Frosty All Starlight","X",null,"3rd",2,"X",null,"X",null,2]
[null,347,"Leah Prosper","Topper","6th",1,"X",null,"X",null,"X",null,1]
[null,46,"Andre Bourck","Nick","X",null,"4th",1,"X",null,"X",null,1]
[null,162,"Christine Smith","Abbey","X",null,"X",null,"X",null,"2nd",1,{"$f":"F279+H279+J279+L279","v":1}]
[null,null,null,null,null,null,null,null,null,null,null,null,0]
[null,null,null,null,null,null,null,null,null,null,null,null,0]
[null,null,null,null,null,null,null,null,null,null,null,null,0]
["WESTERN PLEASURE DIVISION"]
["38 - Youth (WTL - Pattern Class)"]
["*",347,"Leah Prosper","Topper","1st",5,"1st",4,"2nd",1,"X",null,{"$f":"F285+H285+J285+L285","v":10}]
["*",330,"Gracie Costello","Lil Jimmy White Socks","3rd",3,"2nd",3,"1st",2,"1st",1,9]
[null,"323 701","Brooklyn Burke","Bring Mama Flowers","2nd",4,"4th",1,"X",null,"X",null,5]
[null,176,"Ben Scharf","Destined to Dream","4th",2,"X",null,"X",null,"X",null,2]
[null,348,"Katie Mbakulo","Indy","X",null,"3rd",2,"X",null,"X",null,2]
[null,343,"Priscilla Munevar-Pelton","Tally","5th",1,"X",null,"X",null,"X",null,1]
[null,null,null,null,null,null,null,null,null,null,null,null,{"$f":"F291+H291+J291+L291","v":0}]
[null,null,null,null,null,null,null,null,null,null,null,null,0]
[null,null,null,null,null,null,null,null,null,null,null,null,{"$f":"F293+H293+J293+L293","v":0}]
[null,null,null,null,null,null,null,null,null,null,null,null,0]
["39 - Adult  (WTL - Pattern Class)"]
["*",5418,"Elizabeth Anderson","Mac's Mia Bella","X",null,"1st",6,"2nd",3,"1st",3,{"$f":"F296+H296+J296+L296","v":12}]
["*",234,"Wendy Stewart","Just for Snickers","3rd",3,"3rd",4,"1st",4,"X",null,11]
["*",175,"Cheyanne Wheeler","The Western Flirt","5th",1,"2nd",5,"3rd",2,"2nd",2,10]
["*",71,"Corey Wendelken","Mr Big Time Money","2nd",4,"5th",2,"4th",1,"3rd",1,8]
[null,141,"Tracey Scott","Hez Flat Out Gifted","1st",5,"6th",1,"X",null,"X",null,6]
[null,143,"Cindy Steele","Wrapped in Iron","X",null,"4th",3,"X",null,"X",null,3]
[null,295,"Larry Murray","Cali","4th",2,"X",null,"X",null,"X",null,2]
[null,null,null,null,null,null,null,null,null,null,null,null,0]
[null,null,null,null,null,null,null,null,null,null,null,null,{"$f":"F304+H304+J304+L304","v":0}]
[null,null,null,null,null,null,null,null,null,null,null,null,0]
[null,null,null,null,null,null,null,null,null,null,null,null,0]
["40 - Novice Adult - (WTL - Pattern Class)"]
[null,162,"Christine Smith","Abbey","X",null,"X",null,"X",null,"1st",1,{"$f":"F308+H308+J308+L308","v":1}]
[null,null,null,null,"X",null,"X",null,"X",null,"X",null,0]
[null,null,null,null,"X",null,"X",null,"X",null,"X",null,0]
[null,null,null,null,"X",null,"X",null,"X",null,"X",null,0]
[null,null,null,null,"X",null,"X",null,"X",null,"X",null,0]
[null,null,null,null,null,null,null,null,null,null,null,null,0]
[null,null,null,null,null,null,null,null,null,null,null,null,0]
[null,null,null,null,null,null,null,null,null,null,null,null,0]
["41 - Adult Horsemanship Walk/Jog  (WT - Pattern Class)"]
["*",199,"Ashley Hauver","SE Lets Elope","3rd",1,"1st",3,"1st",3,"3rd",2,{"$f":"F317+H317+J317+L317","v":9}]
["*",327,"Alec Hucul","DF Taken Advantage","2nd",2,"3rd",1,"2nd",2,"2nd",3,{"$f":"F318+H318+J318+L318","v":8}]
["*",70,"Lindsay Wiggins","Zippos Time Machine","X",null,"2nd",2,"3rd",1,"4th",1,{"$f":"F319+H319+J319+L319","v":4}]
[null,239,"Bev Johnson","Lexie","X",null,"X",null,"X",null,"1st",4,{"$f":"F320+H320+J320+L320","v":4}]
[null,285,"Dominique Murray","Whisper","1st",3,"X",null,"X",null,"X",null,{"$f":"F321+H321+J321+L321","v":3}]
[null,null,null,null,null,null,null,null,null,null,null,null,{"$f":"F322+H322+J322+L322","v":0}]
[null,null,null,null,null,null,null,null,null,null,null,null,0]
[null,null,null,null,null,null,null,null,null,null,null,null,0]
["42 - Youth Horsemanship Walk/Jog  (WT - Pattern Class)"]
["*",1845,"Emily Anderson","Macs Mia Bella","1st",2,"1st",2,"2nd",1,"2nd",1,{"$f":"F326+H326+J326+L326","v":6}]
["*",306,"Scarlette Hucul","The Western Flirt","2nd",1,"2nd",1,"1st",2,"1st",2,6]
[null,null,null,null,null,null,null,null,null,null,null,null,0]
[null,null,null,null,null,null,null,null,null,null,null,null,0]
[null,null,null,null,null,null,null,null,null,null,null,null,0]
["TRAIL DIVISION"]
["43 - In Hand - 2 yr old & under"]
[null,null,null,null,"X",null,"X",null,"X",null,"X",null,{"$f":"F333+H333+J333+L333","v":0}]
[null,null,null,null,"X",null,"X",null,"X",null,"X",null,0]
[null,null,null,null,"X",null,"X",null,"X",null,"X",null,0]
[null,null,null,null,"X",null,"X",null,"X",null,"X",null,0]
[null,null,null,null,"X",null,"X",null,"X",null,"X",null,0]
[null,null,null,null,null,null,null,null,null,null,null,null,0]
[null,null,null,null,null,null,null,null,null,null,null,null,0]
[null,null,null,null,null,null,null,null,null,null,null,null,0]
["44 - In Hand - 3 yr old & over"]
["*",71,"Corey Wendelken","Mr Big Time Money","1st",5,"1st",4,"1st",4,"2nd",5,{"$f":"F342+H342+J342+L342","v":18}]
["*",330,"Gracie Costello","Lil Jimmy White Socks","2nd",4,"3rd",2,"4th",1,"1st",6,13]
["*","323 701","Brooklyn Burke","Bring Mama Flowers","4th",2,"4th",1,"2nd",3,"4th",3,9]
["*",70,"Lindsay Wiggins","Zippos Time Machine","X",null,"2nd",3,"3rd",2,"3rd",4,9]
[null,285,"Dominique Murray","Whisper","3rd",3,"X",null,"X",null,"X",null,3]
[null,369,"Maycie Linton","Pony Soprano","X",null,"X",null,"X",null,"5th",2,2]
[null,295,"Larry Murray","Cali","5th",1,"X",null,"X",null,"X",null,1]
[null,368,"Debbie Baldwin","Out of the Park","X",null,"X",null,"X",null,"6th",1,1]
[null,null,null,null,null,null,null,null,null,null,null,null,{"$f":"F350+H350+J350+L350","v":0}]
[null,null,null,null,null,null,null,null,null,null,null,null,0]
[null,null,null,null,null,null,null,null,null,null,null,null,0]
["45 - Adult Walk/Jog"]
["*",199,"Ashley Hauver","SE Lets Elope","1st",2,"1st",1,"1st",1,"1st",1,{"$f":"F354+H354+J354+L354","v":5}]
[null,285,"Dominique Murray","Whisper","2nd",1,"X",null,"X",null,"X",null,{"$f":"F355+H355+J355+L355","v":1}]
[null,null,null,null,null,null,null,null,null,null,null,null,{"$f":"F356+H356+J356+L356","v":0}]
[null,null,null,null,null,null,null,null,null,null,null,null,0]
[null,null,null,null,null,null,null,null,null,null,null,null,0]
["46 - Youth Walk/Jog"]
[null,null,null,null,"X",null,"X",null,"X",null,"X",null,{"$f":"F360+H360+J360+L360","v":0}]
[null,null,null,null,"X",null,"X",null,"X",null,"X",null,0]
[null,null,null,null,"X",null,"X",null,"X",null,"X",null,0]
[null,null,null,null,"X",null,"X",null,"X",null,"X",null,0]
[null,null,null,null,"X",null,"X",null,"X",null,"X",null,0]
[null,null,null,null,null,null,null,null,null,null,null,null,0]
[null,null,null,null,null,null,null,null,null,null,null,null,0]
[null,null,null,null,null,null,null,null,null,null,null,null,0]
["47 - Youth 18 yrs & under"]
["*",330,"Gracie Costello","Lil Jimmy White Socks","1st",4,"2nd",2,"2nd",1,"2nd",1,{"$f":"F369+H369+J369+L369","v":8}]
["*","323 701","Brooklyn Burke","Bring Mama Flowers","2nd",3,"3rd",1,"1st",2,"1st",2,{"$f":"F370+H370+J370+L370","v":8}]
[null,348,"Katie Mbakulo","Indy","X",null,"1st",3,"X",null,"X",null,{"$f":"F371+H371+J371+L371","v":3}]
[null,343,"Priscilla Munevar-Pelton","Tally","3rd",2,"X",null,"X",null,"X",null,{"$f":"F372+H372+J372+L372","v":2}]
[null,176,"Ben Scharf","Destined to Dream","4th",1,"X",null,"X",null,"X",null,{"$f":"F373+H373+J373+L373","v":1}]
[null,null,null,null,null,null,null,null,null,null,null,null,{"$f":"F374+H374+J374+L374","v":0}]
[null,null,null,null,null,null,null,null,null,null,null,null,0]
[null,null,null,null,null,null,null,null,null,null,null,null,0]
["48 - Adult"]
["*",71,"Corey Wendelken","Mr Big Time Money","1st",3,"2nd",5,"2nd",1,"1st",2,{"$f":"F378+H378+J378+L378","v":11}]
["*",234,"Wendy Stewart","Just for Snickers","2nd",2,"1st",6,"1st",2,"X",null,10]
[null,46,"Andre Bourck","Nick","X",null,"3rd",4,"X",null,"X",null,4]
[null,533,"Andre Bourck","Frosty All Starlight","X",null,"4th",3,"X",null,"X",null,3]
[null,5418,"Elizabeth Anderson","Mac's Mia Bella","X",null,"5th",2,"X",null,"srtch",null,2]
[null,295,"Larry Murray","Cali","3rd",1,"X",null,"X",null,"X",null,1]
[null,175,"Cheyanne Wheeler","The Western Flirt","X",null,"6th",1,"X",null,"X",null,1]
[null,368,"Debbie Baldwin","Out of the Park","X",null,"X",null,"X",null,"2nd",1,1]
[null,null,null,null,null,null,null,null,null,null,null,null,0]
[null,null,null,null,null,null,null,null,null,null,null,null,0]
[null,null,null,null,null,null,null,null,null,null,null,null,0]
[null,null,null,null,null,null,null,null,null,null,null,null,0]
["49 - Novice Adult"]
[null,null,null,null,"X",null,"X",null,"X",null,"X",null,0]
[null,null,null,null,"X",null,"X",null,"X",null,"X",null,0]
[null,null,null,null,"X",null,"X",null,"X",null,"X",null,0]
[null,null,null,null,"X",null,"X",null,"X",null,"X",null,0]
[null,null,null,null,"X",null,"X",null,"X",null,"X",null,0]
[null,null,null,null,null,null,null,null,null,null,null,null,0]
[null,null,null,null,null,null,null,null,null,null,null,null,0]
[null,null,null,null,null,null,null,null,null,null,null,null,0]

{"sheet":"H-J Division Points","index":1,"n_rows":169,"n_cols":15,"rows_kept":169,"cut":false,"hidden":false,"merged":[[134,0,134,14],[144,0,144,14],[0,17,1,17],[1,4,1,11],[1,12,2,12],[1,14,2,14],[0,0,0,14],[3,0,3,14],[28,0,28,14],[53,0,53,14],[78,0,78,14],[103,0,103,14]]}
["Hunter-Jumper Division Show RESULTS 2019"]
[null,null,null,null,"PLACINGS",null,null,null,null,null,null,null,"TOTAL POINTS","DIVISION","Member     Y/N"]
["Class #","Exhibitor #","Exhibitor","Horse","2019-06-23","Pts","2019-07-14","Pts","2019-07-28","Pts","2019-08-11","Pts",null,"TOTAL"]
["HACK DIVISION"]
[1,163,"Marybeth Duncan","Rio's Lay-Ka","3rd",3,"3rd",3,"2nd",4,"4th",2,12]
[2,163,"Marybeth Duncan","Rio's Lay-Ka","1st",5,"3rd",3,null,null,"3rd",3,11,{"$f":"SUM(M5:M7)","v":38},"Y"]
[3,163,"Marybeth Duncan","Rio's Lay-Ka","3rd",3,"1st",5,"2nd",4,"3rd",3,{"$f":"SUM(F7+H7+J7+L7)","v":15}]
[1,336,"Illeana Pantalone","Bentley",null,null,"2nd",4,"3rd",3,"3rd",3,10]
[2,336,"Illeana Pantalone","Bentley","5th",1,null,null,null,null,null,null,1,{"$f":"SUM(M8:M10)","v":13},"Y"]
[3,336,"Illeana Pantalone","Bentley",null,null,null,null,"4th",2,null,null,2]
[1,342,"Talia Brown","Bambi","srtch",null,"1st",5,"X",null,"1st",5,10]
[2,342,"Talia Brown","Bambi","srtch",null,"2nd",4,"X",null,"1st",5,9,{"$f":"SUM(M11:M13)","v":26},"Y"]
[3,342,"Talia Brown","Bambi","srtch",null,"3rd",3,"X",null,"2nd",4,7]
[1,289,"Elizabeth Cohen","Julana","1st",5,"4th",2,null,null,"X",null,7]
[2,289,"Elizabeth Cohen","Julana",null,null,null,null,null,null,"X",null,0,{"$f":"SUM(M14:M16)","v":11},"Y"]
[3,289,"Elizabeth Cohen","Julana","2nd",4,null,null,null,null,"X",null,4]
[1,"233 299","Ari Lajenuese (Emamen)","Red Rose","4th",2,"X",null,null,null,null,null,2]
[2,"233 299","Ari Lajenuese (Emamen)","Red Rose",null,null,"X",null,"5th",1,null,null,1,{"$f":"SUM(M17:M19)","v":10},"N"]
[3,"233 299","Ari Lajenuese (Emamen)","Red Rose","1st",5,"X",null,null,null,"4th",2,7]
[1,340,"Danika Smith","Heidi",null,null,"5th",1,"X",null,null,null,1]
[2,340,"Danika Smith","Heidi","3rd",3,"5th",1,"X",null,"4th",2,6,{"$f":"SUM(M20:M22)","v":9},"Y"]
[3,340,"Danika Smith","Heidi",null,null,"4th",2,"X",null,null,null,2]
[1,339,"Gracie Purdy","Bugs Bunny",null,null,null,null,null,null,"5th",1,1]
[2,339,"Gracie Purdy","Bugs Bunny",null,null,null,null,null,null,"5th",1,1,{"$f":"SUM(M24:M25)","v":1},"Y"]
[3,339,"Gracie Purdy","Bugs Bunny",null,null,null,null,null,null,null,null,0]
[1]
[2,null,null,null,null,null,null,null,null,null,null,null,null,{"$f":"SUM(M26:M28)","v":0}]
[3]
["WALK / TROT DIVISION - Open to Rider ALL Ages  (limited to this class only)"]
[4,332,"Sophie Emberson","Abby","1st",5,"1st",5,"1st",5,"1st",5,{"$f":"SUM(F30+H30+J30+L30)","v":20}]
[5,332,"Sophie Emberson","Abby","2nd",4,"1st",5,"1st",5,"1st",5,19,{"$f":"SUM(M30:M32)","v":56},"Y"]
[6,332,"Sophie Emberson","Abby","4th",2,"1st",5,"1st",5,"1st",5,17]
[4,335,"Mattea Pantelone","Hollywood","3rd",3,"3rd",3,"2nd",4,"2nd",4,14]
[5,335,"Mattea Pantelone","Hollywood","5th",1,"3rd",3,"4th",2,"3rd",3,9,{"$f":"SUM(M33:M35)","v":34},"Y"]
[6,335,"Mattea Pantelone","Hollywood","5th",1,"3rd",3,"3rd",3,"2nd",4,11]
[4,195,"Piper Streeter","Relaxin Jackson","4th",2,"5th",1,"3rd",3,"3rd",3,9]
[5,195,"Piper Streeter","Relaxin Jackson","4th",2,"5th",1,"2nd",4,"4th",2,9,{"$f":"SUM(M36:M38)","v":29},"Y"]
[6,195,"Piper Streeter","Relaxin Jackson","2nd",4,"4th",2,"2nd",4,"5th",1,11]
[4,296,"Sola McMullen","Lady Gypsy in Gold","5th",1,"4th",2,"5th",1,"4th",2,6]
[5,296,"Sola McMullen","Lady Gypsy in Gold","3rd",3,"2nd",4,"3rd",3,"2nd",4,14,{"$f":"SUM(M39:M41)","v":32},"Y"]
[6,296,"Sola McMullen","Lady Gypsy in Gold","3rd",3,"2nd",4,"4th",2,"3rd",3,12]
[4]
[5,null,null,null,null,null,null,null,null,null,null,null,null,{"$f":"SUM(M42:M44)","v":0}]
[6]
[4]
[5,null,null,null,null,null,null,null,null,null,null,null,null,{"$f":"SUM(M45:M47)","v":0}]
[6]
[4]
[5,null,null,null,null,null,null,null,null,null,null,null,null,{"$f":"SUM(M48:M50)","v":0}]
[6]
[4]
[5,null,null,null,null,null,null,null,null,null,null,null,null,{"$f":"SUM(M51:M53)","v":0}]
[6]
["CROSS RAILS DIVISION - Open to Rider ALL Ages (limited to this division only)"]
[7,344,"Arielle McEwen","Tikka","2nd",2,"2nd",4,"4th",2,"X",null,{"$f":"SUM(F55+H55+J55+L55)","v":8}]
[8,344,"Arielle McEwen","Tikka","2nd",3,"1st",5,"1st",5,"X",null,13,{"$f":"SUM(M55:M57)","v":24},"Y"]
[9,344,"Arielle McEwen","Tikka","5th",1,null,null,"4th",2,"X",null,3]
[7,299,"Ari Lajenuese (Emamen)","Red Rose","3rd",1,"X",null,"3rd",3,"2nd",4,8]
[8,299,"Ari Lajenuese (Emamen)","Red Rose","1st",4,"X",null,"3rd",3,null,null,7,{"$f":"SUM(M58:M60)","v":22},"N"]
[9,299,"Ari Lajenuese (Emamen)","Red Rose","2nd",4,"X",null,"3rd",3,null,null,7]
[7,286,"Kate Anions","Gus","X",null,"1st",5,null,null,"4th",2,7]
[8,286,"Kate Anions","Gus","X",null,"3rd",3,null,null,"5th",1,4,{"$f":"SUM(M61:M63)","v":16},"Y"]
[9,286,"Kate Anions","Gus","X",null,null,null,"5th",1,"2nd",4,5]
[7,291,"Isabelle Joly","Lady Gypsy in Gold","E",null,"4th",2,"X",null,null,null,2]
[8,291,"Isabelle Joly","Lady Gypsy in Gold","4th",1,"4th",2,"X",null,null,null,3,{"$f":"SUM(M64:M66)","v":9},"Y"]
[9,291,"Isabelle Joly","Lady Gypsy in Gold","3rd",3,"5th",1,"X",null,null,null,4]
[7]
[8,null,null,null,null,null,null,null,null,null,null,null,null,{"$f":"SUM(M67:M69)","v":0}]
[9]
[7]
[8,null,null,null,null,null,null,null,null,null,null,null,null,{"$f":"SUM(M70:M72)","v":0}]
[9]
[7]
[8,null,null,null,null,null,null,null,null,null,null,null,null,{"$f":"SUM(M73:M75)","v":0}]
[9]
[7]
[8,null,null,null,null,null,null,null,null,null,null,null,null,{"$f":"SUM(M76:M78)","v":0}]
[9]
["PONY HUNTER DIVISION "]
[10,288,"Sara Bartlett","Lady Gypsy in Gold","X",null,"1st",4,"2nd",2,"5th",1,{"$f":"SUM(F80+H80+J80+L80)","v":7}]
[11,288,"Sara Bartlett","Lady Gypsy in Gold","X",null,"2nd",3,"3rd",1,"2nd",4,8,{"$f":"SUM(M80:M82)","v":19},"Y"]
[12,288,"Sara Bartlett","Lady Gypsy in Gold","X",null,"3rd",2,"3rd",1,"5th",1,4]
[10,197,"Jullian Malanka","Mellow Yellow","2nd",2,"2nd",3,"E",null,"4th",2,7]
[11,197,"Jullian Malanka","Mellow Yellow","3rd",1,"1st",4,"2nd",2,"3rd",3,10,{"$f":"SUM(M83:M85)","v":30},"Y"]
[12,197,"Jullian Malanka","Mellow Yellow","3rd",1,"1st",4,"1st",3,"1st",5,13]
[10,336,"Illeana Pantalone","Bentley","X",null,"3rd",2,"1st",3,null,null,5]
[11,336,"Illeana Pantalone","Bentley","X",null,"3rd",2,"1st",3,null,null,5,{"$f":"SUM(M86:M88)","v":19},"Y"]
[12,336,"Illeana Pantalone","Bentley","X",null,"2nd",3,"2nd",2,"2nd",4,9]
[10]
[11,null,null,null,null,null,null,null,null,null,null,null,null,{"$f":"SUM(M89:M91)","v":0}]
[12]
[10]
[11,null,null,null,null,null,null,null,null,null,null,null,null,{"$f":"SUM(M92:M94)","v":0}]
[12]
[10]
[11,null,null,null,null,null,null,null,null,null,null,null,null,{"$f":"SUM(M95:M97)","v":0}]
[12]
[10]
[11,null,null,null,null,null,null,null,null,null,null,null,null,{"$f":"SUM(M98:M100)","v":0}]
[12]
[10]
[11,null,null,null,null,null,null,null,null,null,null,null,null,{"$f":"SUM(M101:M103)","v":0}]
[12]
["OPEN HUNTER DIVISION"]
[13,341,"Trinity Donovan","Park place","2nd",4,"1st",5,"1st",5,"2nd",4,{"$f":"SUM(F105+H105+J105+L105)","v":18}]
[14,341,"Trinity Donovan","Park place","3rd",3,"1st",5,"1st",5,"4th",2,15,{"$f":"SUM(M105:M107)","v":46},"Y"]
[15,341,"Trinity Donovan","Park place","3rd",3,"3rd",3,"2nd",4,"3rd",3,13]
[13,289,"Elizabeth Cohen","Julana  ","1st",5,"X",null,"5th",1,"3rd",3,9]
[14,289,"Elizabeth Cohen","Julana","1st",5,"X",null,"2nd",4,"1st",5,14,{"$f":"SUM(M108:M110)","v":38},"Y"]
[15,289,"Elizabeth Cohen","Julana","1st",5,"X",null,"1st",5,"1st",5,15]
[13,346,"Cassandra Carpenter","Rio Got Played","4th",2,"3rd",3,null,null,"4th",2,7]
[14,346,"Cassandra Carpenter","Rio Got Played",null,null,null,null,null,null,null,null,0,{"$f":"SUM(M111:M113)","v":7},"Y"]
[15,346,"Cassandra Carpenter","Rio Got Played",null,null,null,null,null,null,null,null,0]
[13,340,"Danika Smith","Heidi","3rd",3,"5th",1,"X",null,"5th",1,5]
[14,340,"Danika Smith","Heidi","4th",2,null,null,"X",null,"3rd",3,5,{"$f":"SUM(M114:M116)","v":19},"Y"]
[15,340,"Danika Smith","Heidi","4th",2,"1st",5,"X",null,"4th",2,9]
[13,342,"Talia Brown","Bambi","srtch",null,null,null,"X",null,"1st",5,5]
[14,342,"Talia Brown","Bambi","srtch",null,"4th",2,"X",null,"2nd",4,6,{"$f":"SUM(M117:M119)","v":19},"Y"]
[15,342,"Talia Brown","Bambi","srtch",null,"2nd",4,"X",null,"2nd",4,8]
[13,287,"Jessica Bartlett","Scout",null,null,"2nd",4,null,null,null,null,4]
[14,287,"Jessica Bartlett","Scout",null,null,null,null,"5th",1,null,null,1,{"$f":"SUM(M120:M122)","v":7},"Y"]
[15,287,"Jessica Bartlett","Scout",null,null,null,null,"4th",2,null,null,2]
[13,328,"Breanna Lyons","Buckshot",null,null,null,null,"2nd",4,null,null,4]
[14,328,"Breanna Lyons","Buckshot",null,null,"E",null,null,null,null,null,0,{"$f":"SUM(M123:M125)","v":5},"Y"]
[15,328,"Breanna Lyons","Buckshot",null,null,null,null,"5th",1,null,null,1]
[13,339,"Gracie Purdy","Bugs bunny",null,null,null,null,"3rd",3,null,null,3]
[14,339,"Gracie Purdy","Bugs bunny","2nd",4,"5th",1,"4th",2,"5th",1,8,{"$f":"SUM(M126:M128)","v":16},"Y"]
[15,339,"Gracie Purdy","Bugs bunny","5th",1,"5th",1,"3rd",3,null,null,5]
[13,292,"Ashley Todd","Daisy",null,null,null,null,"4th",2,null,null,2]
[14,292,"Ashley Todd","Daisy",null,null,null,null,"3rd",3,null,null,3,{"$f":"SUM(M129:M131)","v":5},"Y"]
[15,292,"Ashley Todd","Daisy",null,null,null,null,null,null,null,null,0]
[13]
[14,null,null,null,null,null,null,null,null,null,null,null,null,{"$f":"SUM(M132:M134)","v":0}]
[15]
["OPEN EQUITATION  (Rider Only Judged)(Can have a different horse each day only for this division)"]
[16,340,"Danika Smith","Heidi","1st",5,"3rd",3,"X",null,"2nd",4,{"$f":"SUM(F136+H136+J136+L136)","v":12},null,"Y"]
[16,341,"Trinity Donovan","Park place","3rd",3,"4th",2,"2nd",4,"4th",2,11,null,"Y"]
[16,289,"Elizabeth Cohen","Julana","2nd",4,"scrtch",null,"5th",1,"1st",5,10,null,"Y"]
[16,328,"Breanna Lyons","Buckshot","5th",1,null,null,"1st",5,"3rd",3,9,null,"Y"]
[16,197,"Jullian Malanka","Mellow Yellow",null,null,"1st",5,"4th",2,null,null,7,null,"Y"]
[16,336,"Illeana Pantalone","Bentley","X",null,"2nd",4,"3rd",3,null,null,7,null,"Y"]
[16,339,"Gracie Purdy","Bugs Bunny","4th",2,null,null,null,null,null,null,2,null,"Y"]
[16]
[16]
["JUMPER DIVISION"]
[17,292,"Ashley Todd","Daisy","E",null,"3rd",3,"1st",5,"1st",5,{"$f":"SUM(F146+H146+J146+L146)","v":13}]
[18,292,"Ashley Todd","Daisy","1st",5,null,null,"4th",2,"2nd",4,11,{"$f":"SUM(M146:M148)","v":38},"Y"]
[19,292,"Ashley Todd","Daisy","3rd",2,"3rd",3,"2nd",4,"1st",5,14]
[17,287,"Jessica Bartlett","Scout","1st",5,"4th",2,"3rd",3,"4th",2,12]
[18,287,"Jessica Bartlett","Scout","4th",2,"5th",1,null,null,null,null,3,{"$f":"SUM(M149:M151)","v":16},"Y"]
[19,287,"Jessica Bartlett","Scout","srtch",null,null,null,"5th",1,null,null,1]
[17,340,"Danika Smith","Heidi","4th",2,"2nd",4,"X",null,null,null,6]
[18,340,"Danika Smith","Heidi","2nd",4,"2nd",4,"X",null,"3rd",3,11,{"$f":"SUM(M152:M154)","v":25},"Y"]
[19,340,"Danika Smith","Heidi","1st",4,null,null,"X",null,"2nd",4,8]
[17,293,"Vishnu Vardhan","Gus","2nd",4,null,null,null,null,"5th",1,5]
[18,293,"Vishnu Vardhan","Gus","E",null,null,null,"1st",5,"1st",5,10,{"$f":"SUM(M155:M157)","v":23},"Y"]
[19,293,"Vishnu Vardhan","Gus","4th",1,"4th",2,"3rd",3,"4th",2,8]
[17,341,"Trinity Donovan","Park place","3rd",3,null,null,"X",null,null,null,3]
[18,341,"Trinity Donovan","Park place","3rd",3,null,null,"X",null,"4th",2,5,{"$f":"SUM(M158:M160)","v":12},"Y"]
[19,341,"Trinity Donovan","Park place","2nd",3,null,null,null,null,"5th",1,4]
[17,288,"Sarah Bartlett","Lady Gypsy in Gold","srtch",null,null,null,"5th",1,null,null,1]
[18,288,"Sarah Bartlett","Lady Gypsy in Gold","srtch",null,null,null,"5th",1,"X",null,1,{"$f":"SUM(M161:M163)","v":2},"Y"]
[19,288,"Sarah Bartlett","Lady Gypsy in Gold","srtch",null,null,null,null,null,"X",null,0]
[17]
[18,null,null,null,null,null,null,null,null,null,null,null,null,{"$f":"SUM(M164:M166)","v":0}]
[19]
[17]
[18,null,null,null,null,null,null,null,null,null,null,null,null,{"$f":"SUM(M167:M169)","v":0}]
[19]

{"sheet":"Hunter-Jumper","index":2,"n_rows":448,"n_cols":20,"rows_kept":448,"cut":false,"hidden":false,"merged":[[0,19,2,19],[0,17,2,18],[114,0,114,12],[126,0,126,12],[161,0,161,12],[142,0,142,12],[180,0,180,12],[253,0,253,12],[0,0,0,11],[424,0,424,12],[201,0,201,12],[236,0,236,12],[1,4,1,11],[219,0,219,12],[103,0,103,12],[3,0,3,12],[4,0,4,12],[69,0,69,12],[200,0,200,12],[36,0,36,12],[102,0,102,12],[141,0,141,12],[400,0,400,12],[355,0,355,12],[377,0,377,12],[254,0,254,12],[356,0,356,12],[282,0,282,12],[306,0,306,12],[330,0,330,12],[331,0,331,12]]}
["Hunter-Jumper Division Show RESULTS 2019",null,null,null,null,null,null,null,null,null,null,null,"TOTAL","\"X\" is not entered",null,null,null,"Reminder: ONLY  riders who are DHRC members (year membership) qualify for Year-End Awards",null,"* Qualifies for Year-End Award"]
[null,null,null,null,"PLACINGS",null,null,null,null,null,null,null,null,"\"srtch\" scratched the class"]
[null,"Exhibitor #","Exhibitor","Horse","2019-06-23","Pts","2019-07-14","Pts","2019-07-28","Pts","2019-08-11","Pts","POINTS","\"E\"  eliminated"]
["HACK DIVISION"]
["1 - Road Hack"]
["*",163,"Marybeth Duncan","Rio's Lay-Ka","3rd",3,"3rd",3,"2nd",4,"4th",2,{"$f":"SUM(F6+H6+J6+L6)","v":12}]
["*",336,"Illeana Pantalone","Bentley",null,null,"2nd",4,"3rd",3,"3rd",3,10]
["*",342,"Talia Brown","Bambi","srtch",null,"1st",5,"X",null,"1st",5,10]
[null,151,"Liz Craig","Scottie","2nd",4,"X",null,"1st",5,"X",null,9]
["*",289,"Elizabeth Cohen","Julana","1st",5,"4th",2,null,null,"X",null,7]
[null,158,"Sophie Boal","Express Yourself","X",null,"X",null,"X",null,"2nd",4,4]
[null,341,"Trinity Donovan","Park Place","5th",1,"X",null,"4th",2,"X",null,3]
["*","233 299","Ari Lajenuese (Emamen)","Red Rose","4th",2,"X",null,null,null,null,null,2]
["*",340,"Danika Smith","Heidi",null,null,"5th",1,"X",null,null,null,1]
[null,368,"Debbie Baldwin","Out of the Park","X",null,"X",null,"5th",1,null,null,1]
["*",339,"Gracie Purdy","Bugs Bunny",null,null,null,null,null,null,"5th",1,1]
[null,198,"Meghan Crawford","Express Yourself",null,null,"X",null,"X",null,"X",null,0]
[null,286,"Kate Anions","Gus",null,null,"X",null,"X",null,"X",null,0]
[null,290,"Kate Collins","Jack",null,null,"X",null,"X",null,null,null,0]
[null,297,"Remi Minion","Handsome",null,null,null,null,"X",null,"X",null,0]
[null,298,"Sophie Armstrong","Miss Molly",null,null,"X",null,"X",null,"X",null,0]
[null,348,"Katie Mbakulo","Indy","X",null,null,null,null,null,"X",null,0]
[null,196,"Brook Vanance","Gorgeous","X",null,null,null,"X",null,"X",null,0]
[null,127,"Sabia Smith","Park Place","X",null,null,null,"X",null,null,null,0]
[null,354,"Remi Minion","Gorgeous","X",null,null,null,"X",null,"X",null,0]
[null,367,"Allie Argue","Moxie","X",null,null,null,"X",null,"X",null,0]
[null,328,"Breanna Lyons","Buckshot","X",null,"X",null,null,null,null,null,0]
[null,376,"Brie Brussieres","Heidi","X",null,"X",null,null,null,"X",null,0]
[null,374,"Alexia Catnus","To Infinity and Beyond","X",null,"X",null,null,null,"X",null,0]
[null,375,"Eva Rose","Miss Molly","X",null,"X",null,null,null,"X",null,0]
[null,280,"Trinity Donovan","Hollywood","X",null,"X",null,null,null,"X",null,0]
[null,152,"Talia Black","Paradise","X",null,"X",null,"X",null,null,null,0]
[null,167,"Lauren Gallant","Kinsley","X",null,"X",null,"X",null,null,null,0]
[null,null,null,null,null,null,null,null,null,null,null,null,0]
[null,null,null,null,null,null,null,null,null,null,null,null,{"$f":"SUM(F35+H35+J35+L35)","v":0}]
[null,null,null,null,null,null,null,null,null,null,null,null,0]
["2 - Show Hack"]
["*",163,"Marybeth Duncan","Rio's Lay-Ka","1st",5,"3rd",3,null,null,"3rd",3,{"$f":"SUM(F38+H38+J38+L38)","v":11}]
[null,151,"Liz Craig","Scottie","2nd",4,"X",null,"1st",5,"X",null,9]
["*",342,"Talia Brown","Bambi","srtch",null,"2nd",4,"X",null,"1st",5,9]
["*",340,"Danika Smith","Heidi","3rd",3,"5th",1,"X",null,"4th",2,6]
[null,367,"Allie Argue","Moxie","X",null,"1st",5,"X",null,"X",null,5]
[null,368,"Debbie Baldwin","Out of the Park","X",null,"X",null,"2nd",4,null,null,4]
[null,158,"Sophie Boal","Express Yourself","X",null,"X",null,"X",null,"2nd",4,4]
[null,341,"Trinity Donovan","Park Place",null,null,"X",null,"3rd",3,"X",null,3]
[null,198,"Meghan Crawford","Express Yourself","4th",2,"X",null,"X",null,"X",null,2]
[null,196,"Brook Vanance","Gorgeous","X",null,"4th",2,"X",null,"X",null,2]
[null,348,"Katie Mbakulo","Indy","X",null,null,null,"4th",2,"X",null,2]
["*",336,"Illeana Pantalone","Bentley","5th",1,null,null,null,null,null,null,1]
["*","233 299","Ari Lajenuese (Emamen)","Red Rose",null,null,"X",null,"5th",1,null,null,1]
["*",339,"Gracie Purdy","Bugs Bunny",null,null,null,null,null,null,"5th",1,1]
["*",289,"Elizabeth Cohen","Julana",null,null,null,null,null,null,"X",null,0]
[null,298,"Sophie Armstrong","Miss Molly",null,null,"X",null,"X",null,"X",null,0]
[null,297,"Remi Minion","Handsome",null,null,null,null,"X",null,"X",null,0]
[null,290,"Kate Collins","Jack",null,null,"X",null,"X",null,null,null,0]
[null,286,"Kate Anions","Gus",null,null,"X",null,"X",null,"X",null,0]
[null,127,"Sabia Smith","Park Place","X",null,null,null,"X",null,null,null,0]
[null,354,"Remi Minion","Gorgeous","X",null,null,null,"X",null,"X",null,0]
[null,328,"Breanna Lyons","Buckshot","X",null,"X",null,null,null,null,null,0]
[null,376,"Brie Brussieres","Heidi","X",null,"X",null,null,null,"X",null,0]
[null,374,"Alexia Catnus","To Infinity and Beyond","X",null,"X",null,null,null,"X",null,0]
[null,375,"Eva Rose","Miss Molly","X",null,"X",null,null,null,"X",null,0]
[null,280,"Trinity Donovan","Hollywood","X",null,"X",null,null,null,"X",null,0]
[null,369,"Maycie Linton","Just Put Them Up","X",null,"X",null,null,null,"X",null,0]
[null,152,"Talia Black","Paradise","X",null,"X",null,"X",null,null,null,0]
[null,167,"Lauren Gallant","Kinsley","X",null,"X",null,"X",null,null,null,0]
[null,null,null,null,null,null,null,null,null,null,null,null,0]
[null,null,null,null,null,null,null,null,null,null,null,null,{"$f":"SUM(F68+H68+J68+L68)","v":0}]
[null,null,null,null,null,null,null,null,null,null,null,null,0]
["3 - Pleasure Hack"]
["*",163,"Marybeth Duncan","Rio's Lay-Ka","3rd",3,"1st",5,"2nd",4,"3rd",3,{"$f":"SUM(F71+H71+J71+L71)","v":15}]
[null,127,"Sabia Smith","Park Place","X",null,"2nd",4,"X",null,"1st",5,9]
[null,151,"Liz Craig","Scottie","4th",2,"X",null,"1st",5,"X",null,7]
["*","233 299","Ari Lajenuese (Emamen)","Red Rose","1st",5,"X",null,null,null,"4th",2,7]
["*",342,"Talia Brown","Bambi","srtch",null,"3rd",3,"X",null,"2nd",4,7]
["*",289,"Elizabeth Cohen","Julana","2nd",4,null,null,null,null,"X",null,4]
[null,368,"Debbie Baldwin","Out of the Park","X",null,"X",null,"3rd",3,null,null,3]
["*",340,"Danika Smith","Heidi",null,null,"4th",2,"X",null,null,null,2]
[null,341,"Trinity Donovan","Park Place","5th",1,"X",null,"5th",1,"X",null,2]
["*",336,"Illeana Pantalone","Bentley",null,null,null,null,"4th",2,null,null,2]
[null,344,"Arielle McEwen","Tikka","X",null,"5th",1,null,null,"X",null,1]
[null,290,"Kate Collins","Jack",null,null,"X",null,"X",null,"5th",1,1]
[null,198,"Meghan Crawford","Express Yourself",null,null,"X",null,"X",null,"X",null,0]
[null,298,"Sophie Armstrong","Miss Molly",null,null,"X",null,"X",null,"X",null,0]
[null,297,"Remi Minion","Handsome",null,null,null,null,"X",null,"X",null,0]
[null,286,"Kate Anions","Gus",null,null,"X",null,"X",null,"X",null,0]
["*",339,"Gracie Purdy","Bugs Bunny",null,null,null,null,null,null,null,null,0]
[null,348,"Katie Mbakulo","Indy","X",null,null,null,null,null,"X",null,0]
[null,196,"Brook Vanance","Gorgeous","X",null,null,null,"X",null,"X",null,0]
[null,354,"Remi Minion","Gorgeous","X",null,null,null,"X",null,"X",null,0]
[null,367,"Allie Argue","Moxie","X",null,null,null,"X",null,"X",null,0]
[null,328,"Breanna Lyons","Buckshot","X",null,"X",null,null,null,null,null,0]
[null,376,"Brie Brussieres","Heidi","X",null,"X",null,null,null,"X",null,0]
[null,374,"Alexia Catnus","To Infinity and Beyond","X",null,"X",null,null,null,"X",null,0]
[null,375,"Eva Rose","Miss Molly","X",null,"X",null,null,null,"X",null,0]
[null,280,"Trinity Donovan","Hollywood","X",null,"X",null,null,null,"X",null,0]
[null,152,"Talia Black","Paradise","X",null,"X",null,"X",null,null,null,0]
[null,167,"Lauren Gallant","Kinsley","X",null,"X",null,"X",null,null,null,0]
[null,158,"Sophie Boal","Express Yourself","X",null,"X",null,"X",null,null,null,0]
[null,null,null,null,null,null,null,null,null,null,null,null,{"$f":"SUM(F100+H100+J100+L100)","v":0}]
[null,null,null,null,null,null,null,null,null,null,null,null,0]
[null,null,null,null,null,null,null,null,null,null,null,null,0]
["WALK / TROT DIVISION - Open to Rider ALL Ages  (limited to this class only)"]
["4 - W/T Under Saddle  "]
["*",332,"Sophie Emberson","Abby","1st",5,"1st",5,"1st",5,"1st",5,{"$f":"SUM(F105+H105+J105+L105)","v":20}]
["*",335,"Mattea Pantelone","Hollywood","3rd",3,"3rd",3,"2nd",4,"2nd",4,14]
["*",195,"Piper Streeter","Relaxin Jackson","4th",2,"5th",1,"3rd",3,"3rd",3,9]
["*",296,"Sola McMullen","Lady Gypsy in Gold","5th",1,"4th",2,"5th",1,"4th",2,6]
[null,196,"Brook Vanance","Gorgeous","2nd",4,"X",null,"X",null,"X",null,4]
[null,130,"Kylie Brown","Heidi","X",null,"2nd",4,"X",null,"X",null,4]
[null,369,"Maycie Linton","Just Put Them Up","X",null,"X",null,"4th",2,"X",null,2]
[null,238,"Kylie Brown","Bugs Bunny","X",null,"X",null,"X",null,"5th",1,1]
[null,237,"Willa Schouten","Hollywood","X",null,"X",null,"X",null,null,null,0]
[null,null,null,null,null,null,null,null,null,null,null,null,{"$f":"SUM(F114+H114+J114+L114)","v":0}]
["5 - W/T Equitation  "]
["*",332,"Sophie Emberson","Abby","2nd",4,"1st",5,"1st",5,"1st",5,{"$f":"SUM(F116+H116+J116+L116)","v":19}]
["*",296,"Sola McMullen","Lady Gypsy in Gold","3rd",3,"2nd",4,"3rd",3,"2nd",4,14]
["*",195,"Piper Streeter","Relaxin Jackson","4th",2,"5th",1,"2nd",4,"4th",2,9]
["*",335,"Mattea Pantelone","Hollywood","5th",1,"3rd",3,"4th",2,"3rd",3,9]
[null,196,"Brook Vanance","Gorgeous","1st",5,"X",null,"X",null,"X",null,5]
[null,130,"Kylie Brown","Heidi","X",null,"4th",2,"X",null,"X",null,2]
[null,369,"Maycie Linton","Just Put Them Up","X",null,"X",null,"5th",1,"X",null,1]
[null,238,"Kylie Brown","Bugs Bunny","X",null,"X",null,"X",null,"5th",1,1]
[null,null,null,null,null,null,null,null,null,null,null,null,0]
[null,null,null,null,null,null,null,null,null,null,null,null,0]
[null,null,null,null,null,null,null,null,null,null,null,null,0]
["6 - W/T Poles  "]
["*",332,"Sophie Emberson","Abby","4th",2,"1st",5,"1st",5,"1st",5,{"$f":"SUM(F128+H128+J128+L128)","v":17}]
["*",296,"Sola McMullen","Lady Gypsy in Gold","3rd",3,"2nd",4,"4th",2,"3rd",3,12]
["*",195,"Piper Streeter","Relaxin Jackson","2nd",4,"4th",2,"2nd",4,"5th",1,11]
["*",335,"Mattea Pantelone","Hollywood","5th",1,"3rd",3,"3rd",3,"2nd",4,11]
[null,196,"Brook Vanance","Gorgeous","1st",5,"X",null,"X",null,"X",null,5]
[null,238,"Kylie Brown","Bugs Bunny","X",null,"X",null,"X",null,"4th",2,2]
[null,130,"Kylie Brown","Heidi","X",null,"5th",1,"X",null,"X",null,1]
[null,369,"Maycie Linton","Just Put Them Up","X",null,"X",null,"5th",1,"X",null,1]
[null,377,"Willa Schouten","Bugs Bunny","X",null,"X",null,"5th",1,"X",null,1]
[null,237,"Willa Schouten","Hollywood","X",null,"X",null,"X",null,null,null,0]
[null,294,"Imogen Ritwychken","Jack","X",null,"X",null,"X",null,null,null,0]
[null,null,null,null,null,null,null,null,null,null,null,null,0]
[null,null,null,null,null,null,null,null,null,null,null,null,0]
[null,null,null,null,null,null,null,null,null,null,null,null,0]
["CROSS RAILS DIVISION - Open to Rider ALL Ages (limited to this division only)"]
["7 - Cross Rails - Over Fences"]
["*",344,"Arielle McEwen","Tikka","2nd",2,"2nd",4,"4th",2,"X",null,{"$f":"SUM(F144+H144+J144+L144)","v":8}]
["*",299,"Ari Lajenuese (Emamen)","Red Rose","3rd",1,"X",null,"3rd",3,"2nd",4,8]
["*",286,"Kate Anions","Gus","X",null,"1st",5,null,null,"4th",2,7]
[null,368,"Debbie Baldwin","Out of the Park","X",null,"X",null,"1st",5,null,null,5]
[null,376,"Brie Brussieres","Heidi","X",null,"X",null,null,null,"1st",5,5]
[null,373,"Ella Munro","Park Place","X",null,"X",null,"2nd",4,"X",null,4]
[null,125,"Sabia Smith","Bugs Bunny","X",null,"3rd",3,"X",null,"5th",1,4]
[null,336,"Illeana Pantalone","Bentley","1st",3,"X",null,"X",null,"X",null,3]
[null,158,"Sophie Boal","Express Yourself","X",null,"X",null,"X",null,"3rd",3,3]
["*",291,"Isabelle Joly","Lady Gypsy in Gold","E",null,"4th",2,"X",null,null,null,2]
[null,196,"Brook Vanance","Gorgeous","X",null,"5th",1,"X",null,"X",null,1]
[null,370,"Kayla Kenney","Aged to Perfection","X",null,"X",null,"5th",1,"X",null,1]
[null,335,"Mattea Pantelone","Hollywood","srtch",null,"srtch",null,"X",null,null,null,0]
[null,348,"Katie Mbakulo","Indy","X",null,"E",null,null,null,"X",null,0]
[null,133,"Brie Brussieres","Hollywood","X",null,"E",null,"X",null,"X",null,0]
[null,369,"Maycie Linton","Just Put Them Up","X",null,"X",null,"X",null,null,null,0]
[null,167,"Lauren Gallant","Kinsley","X",null,"X",null,"X",null,null,null,0]
[null,null,null,null,null,null,null,null,null,null,null,null,{"$f":"SUM(F161+H161+J161+L161)","v":0}]
["8 - Cross Rails - Over Fences"]
["*",344,"Arielle McEwen","Tikka","2nd",3,"1st",5,"1st",5,"X",null,{"$f":"SUM(F163+H163+J163+L163)","v":13}]
["*",299,"Ari Lajenuese (Emamen)","Red Rose","1st",4,"X",null,"3rd",3,null,null,7]
[null,125,"Sabia Smith","Bugs Bunny","X",null,"2nd",4,"X",null,"4th",2,6]
[null,376,"Brie Brussieres","Heidi","X",null,"X",null,"4th",2,"2nd",4,6]
[null,158,"Sophie Boal","Express Yourself","X",null,"X",null,"X",null,"1st",5,5]
[null,373,"Ella Munro","Park Place","X",null,"X",null,"2nd",4,"X",null,4]
["*",286,"Kate Anions","Gus","X",null,"3rd",3,null,null,"5th",1,4]
["*",291,"Isabelle Joly","Lady Gypsy in Gold","4th",1,"4th",2,"X",null,null,null,3]
[null,369,"Maycie Linton","Just Put Them Up","X",null,"X",null,"X",null,"3rd",3,3]
[null,336,"Illeana Pantalone","Bentley","3rd",2,"X",null,"X",null,"X",null,2]
[null,196,"Brook Vanance","Gorgeous","X",null,"5th",1,"X",null,"X",null,1]
[null,348,"Katie Mbakulo","Indy","X",null,null,null,"5th",1,"X",null,1]
[null,335,"Mattea Pantelone","Hollywood","srtch",null,"srtch",null,"X",null,"X",null,0]
[null,133,"Brie Brussieres","Hollywood","X",null,null,null,"X",null,"X",null,0]
[null,370,"Kayla Kenney","Aged to Perfection","X",null,"X",null,null,null,"X",null,0]
[null,368,"Debbie Baldwin","Out of the Park","X",null,"X",null,null,null,null,null,0]
[null,167,"Lauren Gallant","Kinsley","X",null,"X",null,"X",null,null,null,0]
[null,null,null,null,null,null,null,null,null,null,null,null,0]
["9 - Cross Rails - Under Saddle"]
["*",299,"Ari Lajenuese (Emamen)","Red Rose","2nd",4,"X",null,"3rd",3,null,null,{"$f":"SUM(F182+H182+J182+L182)","v":7}]
[null,125,"Sabia Smith","Bugs Bunny","X",null,"2nd",4,"X",null,"3rd",3,7]
[null,336,"Illeana Pantalone","Bentley","1st",5,"X",null,"X",null,"X",null,5]
[null,133,"Brie Brussieres","Hollywood","X",null,"1st",5,"X",null,"X",null,5]
[null,373,"Ella Munro","Park Place","X",null,"X",null,"1st",5,"X",null,5]
["*",286,"Kate Anions","Gus","X",null,null,null,"5th",1,"2nd",4,5]
[null,158,"Sophie Boal","Express Yourself","X",null,"X",null,"X",null,"1st",5,5]
["*",291,"Isabelle Joly","Lady Gypsy in Gold","3rd",3,"5th",1,"X",null,null,null,4]
[null,376,"Brie Brussieres","Heidi","X",null,"X",null,"2nd",4,null,null,4]
[null,290,"Kate Collins","Jack","4th",2,"X",null,"X",null,"4th",2,4]
[null,348,"Katie Mbakulo","Indy","X",null,"3rd",3,null,null,"X",null,3]
["*",344,"Arielle McEwen","Tikka","5th",1,null,null,"4th",2,"X",null,3]
[null,196,"Brook Vanance","Gorgeous","X",null,"4th",2,"X",null,"X",null,2]
[null,369,"Maycie Linton","Just Put Them Up","X",null,"X",null,"X",null,"5th",1,1]
[null,335,"Mattea Pantelone","Hollywood","srtch",null,"X",null,"X",null,"X",null,0]
[null,370,"Kayla Kenney","Aged to Perfection","X",null,"X",null,null,null,"X",null,0]
[null,368,"Debbie Baldwin","Out of the Park","X",null,"X",null,null,null,null,null,0]
[null,167,"Lauren Gallant","Kinsley","X",null,"X",null,"X",null,null,null,0]
[null,null,null,null,null,null,null,null,null,null,null,null,{"$f":"SUM(F200+H200+J200+L200)","v":0}]
["PONY HUNTER DIVISION "]
["10 - Pony Hunter  Over Fences"]
["*",288,"Sara Bartlett","Lady Gypsy in Gold","X",null,"1st",4,"2nd",2,"5th",1,{"$f":"SUM(F203+H203+J203+L203)","v":7}]
["*",197,"Jullian Malanka","Mellow Yellow","2nd",2,"2nd",3,"E",null,"4th",2,7]
["*",336,"Illeana Pantalone","Bentley","X",null,"3rd",2,"1st",3,null,null,5]
[null,152,"Talia Black","Paradise","X",null,"X",null,"X",null,"1st",5,5]
[null,344,"Arielle McEwen","Tikka","X",null,"X",null,"X",null,"2nd",4,4]
[null,198,"Megan Crawford","Express Yourself","1st",3,"X",null,"X",null,"X",null,3]
[null,153,"Taylor Jessup","Soprano","X",null,"X",null,"X",null,"3rd",3,3]
[null,338,"Sarah Kuzniarz","Bentley","3rd",1,"X",null,"X",null,"X",null,1]
[null,340,"Danika Smith","Heidi","srtch",null,"X",null,"X",null,"X",null,0]
[null,337,"Nora Lacroix","Hollywood","srtch",null,"X",null,"X",null,"X",null,0]
[null,124,"Hailey Fleming","Polka Dot Bikini","X",null,"E",null,"X",null,"X",null,0]
[null,null,null,null,null,null,null,null,null,null,null,null,{"$f":"SUM(F214+H214+J214+L214)","v":0}]
[null,null,null,null,null,null,null,null,null,null,null,null,0]
[null,null,null,null,null,null,null,null,null,null,null,null,0]
[null,null,null,null,null,null,null,null,null,null,null,null,0]
[null,null,null,null,null,null,null,null,null,null,null,null,0]
[null,null,null,null,null,null,null,null,null,null,null,null,0]
["11 - Pony Hunter Over Fences"]
["*",197,"Jullian Malanka","Mellow Yellow","3rd",1,"1st",4,"2nd",2,"3rd",3,{"$f":"SUM(F221+H221+J221+L221)","v":10}]
["*",288,"Sara Bartlett","Lady Gypsy in Gold","X",null,"2nd",3,"3rd",1,"2nd",4,8]
["*",336,"Illeana Pantalone","Bentley","X",null,"3rd",2,"1st",3,null,null,5]
[null,152,"Talia Black","Paradise","X",null,"X",null,"X",null,"1st",5,5]
[null,338,"Sarah Kuzniarz","Bentley","1st",3,"X",null,"X",null,"X",null,3]
[null,198,"Megan Crawford","Express Yourself","2nd",2,"X",null,"X",null,"X",null,2]
[null,344,"Arielle McEwen","Tikka","X",null,"X",null,"X",null,"4th",2,2]
[null,153,"Taylor Jessup","Soprano","X",null,"X",null,"X",null,"5th",1,1]
[null,340,"Danika Smith","Heidi","srtch",null,"X",null,"X",null,"X",null,0]
[null,337,"Nora Lacroix","Hollywood","srtch",null,"X",null,"X",null,"X",null,0]
[null,124,"Hailey Fleming","Polka Dot Bikini","X",null,"E",null,"X",null,"X",null,0]
[null,null,null,null,null,null,null,null,null,null,null,null,{"$f":"SUM(F232+H232+J232+L232)","v":0}]
[null,null,null,null,null,null,null,null,null,null,null,null,0]
[null,null,null,null,null,null,null,null,null,null,null,null,0]
[null,null,null,null,null,null,null,null,null,null,null,null,0]
[null,null,null,null,null,null,null,null,null,null,null,null,0]
["12 - Pony Hunter Under Saddle"]
["*",197,"Jullian Malanka","Mellow Yellow","3rd",1,"1st",4,"1st",3,"1st",5,{"$f":"SUM(F238+H238+J238+L238)","v":13}]
["*",336,"Illeana Pantalone","Bentley","X",null,"2nd",3,"2nd",2,"2nd",4,9]
["*",288,"Sara Bartlett","Lady Gypsy in Gold","X",null,"3rd",2,"3rd",1,"5th",1,4]
[null,338,"Sarah Kuzniarz","Bentley","1st",3,"X",null,"X",null,"X",null,3]
[null,344,"Arielle McEwen","Tikka","X",null,"X",null,"X",null,"3rd",3,3]
[null,198,"Megan Crawford","Express Yourself","2nd",2,"X",null,"X",null,"X",null,2]
[null,152,"Talia Black","Paradise","X",null,"X",null,"X",null,"4th",2,2]
[null,124,"Hailey Fleming","Polka Dot Bikini","X",null,"4th",1,"X",null,"X",null,1]
[null,340,"Danika Smith","Heidi","srtch",null,"X",null,"X",null,"X",null,0]
[null,337,"Nora Lacroix","Hollywood","srtch",null,"X",null,"X",null,"X",null,0]
[null,153,"Taylor Jessup","Soprano","X",null,"X",null,"X",null,null,null,0]
[null,null,null,null,null,null,null,null,null,null,null,null,{"$f":"SUM(F249+H249+J249+L249)","v":0}]
[null,null,null,null,null,null,null,null,null,null,null,null,0]
[null,null,null,null,null,null,null,null,null,null,null,null,0]
[null,null,null,null,null,null,null,null,null,null,null,null,0]
[null,null,null,null,null,null,null,null,null,null,null,null,0]
["OPEN HUNTER DIVISION "]
["13 - Open Hunter Over Fences"]
["*",341,"Trinity Donovan","Park place","2nd",4,"1st",5,"1st",5,"2nd",4,{"$f":"SUM(F256+H256+J256+L256)","v":18}]
["*",289,"Elizabeth Cohen","Julana  ","1st",5,"X",null,"5th",1,"3rd",3,9]
["*",346,"Cassandra Carpenter","Rio Got Played","4th",2,"3rd",3,null,null,"4th",2,7]
["*",340,"Danika Smith","Heidi","3rd",3,"5th",1,"X",null,"5th",1,5]
["*",342,"Talia Brown","Bambi","srtch",null,null,null,"X",null,"1st",5,5]
["*",287,"Jessica Bartlett","Scout",null,null,"2nd",4,null,null,null,null,4]
["*",328,"Breanna Lyons","Buckshot",null,null,null,null,"2nd",4,null,null,4]
["*",339,"Gracie Purdy","Bugs bunny",null,null,null,null,"3rd",3,null,null,3]
[null,null,"Elizabeth Cohen","Gus","X",null,"4th",2,"X",null,"X",null,2]
["*",292,"Ashley Todd","Daisy",null,null,null,null,"4th",2,null,null,2]
[null,334,"Brittany Fex","WRITTEN IN CHOCOLATE","5th",1,"X",null,"X",null,null,null,1]
[null,298,"Sophie Armstrong","Miss Molly",null,null,"X",null,"X",null,"X",null,0]
[null,297,"Remi Minion","Handsome",null,null,null,null,"X",null,"X",null,0]
[null,null,"Kate Anions","Gus","srtch",null,"X",null,"X",null,"X",null,0]
[null,288,"Sarah Bartlett","Lady Gypsy in Gold",null,null,"X",null,"X",null,"X",null,0]
[null,151,"Liz Craig","Scottie","srtch",null,"X",null,"X",null,"X",null,0]
[null,211,"Allie Argue","Concert",null,null,"X",null,"X",null,"X",null,0]
[null,123,"Maiah Lodu","Ivy League","X",null,"E",null,"X",null,"X",null,0]
[null,152,"Talia Black","Paradise","X",null,"X",null,"X",null,null,null,0]
[null,245,"Emma Dashnay","Dakota","X",null,"X",null,"X",null,null,null,0]
[null,null,null,null,null,null,null,null,null,null,null,null,{"$f":"SUM(F276+H276+J276+L276)","v":0}]
[null,null,null,null,null,null,null,null,null,null,null,null,0]
[null,null,null,null,null,null,null,null,null,null,null,null,0]
[null,null,null,null,null,null,null,null,null,null,null,null,0]
[null,null,null,null,null,null,null,null,null,null,null,null,0]
[null,null,null,null,null,null,null,null,null,null,null,null,0]
[null,null,null,null,null,null,null,null,null,null,null,null,0]
["14 - Open Hunter Over Fences"]
["*",341,"Trinity Donovan","Park place","3rd",3,"1st",5,"1st",5,"4th",2,{"$f":"SUM(F284+H284+J284+L284)","v":15}]
["*",289,"Elizabeth Cohen","Julana","1st",5,"X",null,"2nd",4,"1st",5,14]
["*",339,"Gracie Purdy","Bugs bunny","2nd",4,"5th",1,"4th",2,"5th",1,8]
["*",342,"Talia Brown","Bambi","srtch",null,"4th",2,"X",null,"2nd",4,6]
["*",340,"Danika Smith","Heidi","4th",2,null,null,"X",null,"3rd",3,5]
[null,null,"Elizabeth Cohen","Gus","X",null,"2nd",4,"X",null,"X",null,4]
[null,297,"Remi Minion","Handsome",null,null,"3rd",3,"X",null,"X",null,3]
["*",292,"Ashley Todd","Daisy",null,null,null,null,"3rd",3,null,null,3]
[null,334,"Brittany Fex","WRITTEN IN CHOCOLATE","5th",1,"X",null,"X",null,null,null,1]
["*",287,"Jessica Bartlett","Scout",null,null,null,null,"5th",1,null,null,1]
[null,298,"Sophie Armstrong","Miss Molly",null,null,"X",null,"X",null,"X",null,0]
[null,null,"Kate Anions","Gus","srtch",null,"X",null,"X",null,"X",null,0]
[null,288,"Sarah Bartlett","Lady Gypsy in Gold",null,null,"X",null,"X",null,"X",null,0]
[null,151,"Liz Craig","Scottie","srtch",null,"X",null,"X",null,"X",null,0]
["*",346,"Cassandra Carpenter","Rio Got Played",null,null,null,null,null,null,null,null,0]
["*",328,"Breanna Lyons","Buckshot",null,null,"E",null,null,null,null,null,0]
[null,211,"Allie Argue","Concert",null,null,"X",null,"X",null,"X",null,0]
[null,123,"Maiah Lodu","Ivy League","X",null,null,null,"X",null,"X",null,0]
[null,152,"Talia Black","Paradise","X",null,"X",null,"X",null,null,null,0]
[null,245,"Emma Dashnay","Dakota","X",null,"X",null,"X",null,null,null,0]
[null,null,null,null,null,null,null,null,null,null,null,null,0]
[null,null,null,null,null,null,null,null,null,null,null,null,0]
[null,null,null,null,null,null,null,null,null,null,null,null,0]
["15 - Open Hunter Under Saddle"]
["*",289,"Elizabeth Cohen","Julana","1st",5,"X",null,"1st",5,"1st",5,{"$f":"SUM(F308+H308+J308+L308)","v":15}]
["*",341,"Trinity Donovan","Park place","3rd",3,"3rd",3,"2nd",4,"3rd",3,13]
["*",340,"Danika Smith","Heidi","4th",2,"1st",5,"X",null,"4th",2,9]
["*",342,"Talia Brown","Bambi","srtch",null,"2nd",4,"X",null,"2nd",4,8]
["*",339,"Gracie Purdy","Bugs bunny","5th",1,"5th",1,"3rd",3,null,null,5]
[null,334,"Brittany Fex","WRITTEN IN CHOCOLATE","2nd",4,"X",null,"X",null,"5th",1,5]
[null,123,"Maiah Lodu","Ivy League","X",null,"4th",2,"X",null,"X",null,2]
["*",287,"Jessica Bartlett","Scout",null,null,null,null,"4th",2,null,null,2]
["*",328,"Breanna Lyons","Buckshot",null,null,null,null,"5th",1,null,null,1]
[null,298,"Sophie Armstrong","Miss Molly",null,null,"X",null,"X",null,"X",null,0]
[null,297,"Remi Minion","Handsome",null,null,null,null,"X",null,"X",null,0]
[null,null,"Kate Anions","Gus","srtch",null,"X",null,"X",null,"X",null,0]
["*",292,"Ashley Todd","Daisy",null,null,null,null,null,null,null,null,0]
[null,null,"Elizabeth Cohen","Gus","X",null,null,null,"X",null,"X",null,0]
[null,288,"Sarah Bartlett","Lady Gypsy in Gold",null,null,"X",null,"X",null,"X",null,0]
[null,151,"Liz Craig","Scottie",null,null,"X",null,"X",null,"X",null,0]
["*",346,"Cassandra Carpenter","Rio Got Played",null,null,null,null,null,null,null,null,0]
[null,211,"Allie Argue","Concert",null,null,"X",null,"X",null,"X",null,0]
[null,291,"Isabelle Joly","Lady Gypsy in Gold","X",null,null,null,"X",null,"X",null,0]
[null,152,"Talia Black","Paradise","X",null,"X",null,"X",null,null,null,0]
[null,245,"Emma Dashnay","Dakota","X",null,"X",null,"X",null,null,null,0]
[null,null,null,null,null,null,null,null,null,null,null,null,0]
[null,null,null,null,null,null,null,null,null,null,null,null,0]
["OPEN EQUITATION  (Rider Only Judged)(Can have a different horse each day only for this division)"]
["16 - Open Equitation Medal - Over Fences"]
["*",340,"Danika Smith","Heidi","1st",5,"3rd",3,"X",null,"2nd",4,{"$f":"SUM(F333+H333+J333+L333)","v":12}]
["*",341,"Trinity Donovan","Park place","3rd",3,"4th",2,"2nd",4,"4th",2,11]
["*",289,"Elizabeth Cohen","Julana","2nd",4,"scrtch",null,"5th",1,"1st",5,10]
["*",328,"Breanna Lyons","Buckshot","5th",1,null,null,"1st",5,"3rd",3,9]
["*",197,"Jullian Malanka","Mellow Yellow",null,null,"1st",5,"4th",2,null,null,7]
["*",336,"Illeana Pantalone","Bentley","X",null,"2nd",4,"3rd",3,null,null,7]
["*",339,"Gracie Purdy","Bugs Bunny","4th",2,null,null,null,null,null,null,2]
[null,342,"Talia Brown","Bambi","X",null,"5th",1,"X",null,"5th",1,2]
[null,198,"Megan Crawford","Express Yourself","srtch",null,"X",null,"X",null,"X",null,0]
[null,299,"Ari Lajenuese (Emamen)","Red Rose","srtch",null,"X",null,"X",null,"X",null,0]
[null,298,"Sophie Armstrong","Miss Molly","srtch",null,"X",null,"X",null,"X",null,0]
[null,297,"Remi Minion","Handsome","srtch",null,"X",null,"X",null,"X",null,0]
[null,292,"Ashley Todd","Daisy",null,null,"X",null,"X",null,"X",null,0]
[null,288,"Sarah Bartlett","Lady Gypsy in Gold",null,null,"X",null,"X",null,"X",null,0]
[null,287,"Jessica Bartlett","Scout",null,null,"X",null,"X",null,"X",null,0]
[null,334,"Brittany Fex","WRITTEN IN CHOCOLATE","srtch",null,"X",null,"X",null,"X",null,0]
[null,371,"Hailey Kenney","Just Put Them Up","X",null,"X",null,null,null,"X",null,0]
[null,152,"Talia Black","Paradise","X",null,"X",null,"X",null,null,null,0]
[null,344,"Arielle McEwen","Tikka","X",null,"X",null,"X",null,null,null,0]
[null,245,"Emma Dashnay","Dakota","X",null,"X",null,"X",null,null,null,0]
[null,null,null,null,null,null,null,null,null,null,null,null,0]
[null,null,null,null,null,null,null,null,null,null,null,null,0]
[null,null,null,null,null,null,null,null,null,null,null,null,0]
["JUMPER DIVISION"]
["17 - 18\" Speed Round"]
["*",292,"Ashley Todd","Daisy","E",null,"3rd",3,"1st",5,"1st",5,{"$f":"SUM(F358+H358+J358+L358)","v":13}]
["*",287,"Jessica Bartlett","Scout","1st",5,"4th",2,"3rd",3,"4th",2,12]
["*",340,"Danika Smith","Heidi","4th",2,"2nd",4,"X",null,null,null,6]
[null,211,"Allie Argue","Concert","X",null,"1st",5,"X",null,"X",null,5]
["*",293,"Vishnu Vardhan","Gus","2nd",4,null,null,null,null,"5th",1,5]
[null,371,"Hailey Kenney","Just Put Them Up","X",null,"X",null,"2nd",4,"X",null,4]
[null,247,"Kendra Murray","Dakota","X",null,"X",null,"X",null,"2nd",4,4]
["*",341,"Trinity Donovan","Park place","3rd",3,null,null,"X",null,null,null,3]
[null,152,"Talia Black","Paradise","X",null,"X",null,"X",null,"3rd",3,3]
[null,349,"Lydia Georgison","Indian Summer","X",null,null,null,"4th",2,"X",null,2]
[null,342,"Talia Brown","Bambi","X",null,"5th",1,"X",null,"X",null,1]
["*",288,"Sarah Bartlett","Lady Gypsy in Gold","srtch",null,null,null,"5th",1,null,null,1]
[null,289,"Elizabeth Cohen","Julana","srtch",null,"X",null,"X",null,"X",null,0]
[null,328,"Breanna Lyons","Buckshot","X",null,null,null,null,null,"X",null,0]
[null,134,"Jessica Messier","Rolex","X",null,null,null,"X",null,"X",null,0]
[null,339,"Gracie Purdy","Bugs Bunny","X",null,null,null,"X",null,"X",null,0]
[null,336,"Illeana Pantalone","Bentley","X",null,"X",null,"X",null,null,null,0]
[null,346,"Cassandra Carpenter","Rio Got Played","X",null,"X",null,"X",null,null,null,0]
[null,null,null,null,null,null,null,null,null,null,null,null,{"$f":"SUM(F376+H376+J376+L376)","v":0}]
[null,null,null,null,null,null,null,null,null,null,null,null,0]
["18 - 2' Clear Round with Jump Off"]
["*",340,"Danika Smith","Heidi","2nd",4,"2nd",4,"X",null,"3rd",3,{"$f":"SUM(F379+H379+J379+L379)","v":11}]
["*",292,"Ashley Todd","Daisy","1st",5,null,null,"4th",2,"2nd",4,11]
["*",293,"Vishnu Vardhan","Gus","E",null,null,null,"1st",5,"1st",5,10]
[null,211,"Allie Argue","Concert","X",null,"1st",5,"X",null,"X",null,5]
["*",341,"Trinity Donovan","Park place","3rd",3,null,null,"X",null,"4th",2,5]
[null,371,"Hailey Kenney","Just Put Them Up","X",null,"X",null,"2nd",4,"X",null,4]
["*",287,"Jessica Bartlett","Scout","4th",2,"5th",1,null,null,null,null,3]
[null,339,"Gracie Purdy","Bugs Bunny","X",null,"3rd",3,"X",null,"X",null,3]
[null,349,"Lydia Georgison","Indian Summer","X",null,null,null,"3rd",3,"X",null,3]
[null,147,"Danielle Avery","Playing With Fire","X",null,"4th",2,"X",null,"X",null,2]
["*",288,"Sarah Bartlett","Lady Gypsy in Gold","srtch",null,null,null,"5th",1,"X",null,1]
[null,152,"Talia Black","Paradise","X",null,"X",null,"X",null,"5th",1,1]
[null,289,"Elizabeth Cohen","Julana","srtch",null,"X",null,"X",null,"X",null,0]
[null,328,"Breanna Lyons","Buckshot","X",null,null,null,"X",null,"X",null,0]
[null,342,"Talia Brown","Bambi","X",null,null,null,"X",null,"X",null,0]
[null,134,"Jessica Messier","Rolex","X",null,null,null,"X",null,"X",null,0]
[null,197,"Jullian Malanka","Mellow Yellow","X",null,"X",null,null,null,null,null,0]
[null,247,"Kendra Murray","Dakota","X",null,"X",null,"X",null,null,null,0]
[null,336,"Illeana Pantalone","Bentley","X",null,"X",null,"X",null,null,null,0]
[null,346,"Cassandra Carpenter","Rio Got Played","X",null,"X",null,"X",null,null,null,0]
[null,null,null,null,null,null,null,null,null,null,null,null,{"$f":"SUM(F399+H399+J399+L399)","v":0}]
[null,null,null,null,null,null,null,null,null,null,null,null,0]
["19 - 2'3\" Speed Round"]
["*",292,"Ashley Todd","Daisy","3rd",2,"3rd",3,"2nd",4,"1st",5,{"$f":"SUM(F402+H402+J402+L402)","v":14}]
[null,349,"Lydia Georgison","Indian Summer","X",null,"2nd",4,"1st",5,"X",null,9]
["*",293,"Vishnu Vardhan","Gus","4th",1,"4th",2,"3rd",3,"4th",2,8]
["*",340,"Danika Smith","Heidi","1st",4,null,null,"X",null,"2nd",4,8]
[null,211,"Allie Argue","Concert","X",null,"1st",5,"X",null,"X",null,5]
[null,346,"Cassandra Carpenter","Rio Got Played","X",null,"X",null,"4th",2,"3rd",3,5]
["*",341,"Trinity Donovan","Park place","2nd",3,null,null,null,null,"5th",1,4]
[null,339,"Gracie Purdy","Bugs Bunny","X",null,"5th",1,"X",null,"X",null,1]
["*",287,"Jessica Bartlett","Scout","srtch",null,null,null,"5th",1,null,null,1]
[null,289,"Elizabeth Cohen","Julana","srtch",null,"X",null,"X",null,"X",null,0]
["*",288,"Sarah Bartlett","Lady Gypsy in Gold","srtch",null,null,null,null,null,"X",null,0]
[null,328,"Breanna Lyons","Buckshot","X",null,null,null,"X",null,"X",null,0]
[null,342,"Talia Brown","Bambi","X",null,null,null,"X",null,"X",null,0]
[null,134,"Jessica Messier","Rolex","X",null,null,null,"X",null,"X",null,0]
[null,147,"Danielle Avery","Playing With Fire","X",null,null,null,"X",null,"X",null,0]
[null,371,"Hailey Kenney","Just Put Them Up","X",null,"X",null,null,null,"X",null,0]
[null,197,"Jullian Malanka","Mellow Yellow","X",null,"X",null,null,null,null,null,0]
[null,152,"Talia Black","Paradise","X",null,"X",null,"X",null,null,null,0]
[null,247,"Kendra Murray","Dakota","X",null,"X",null,"X",null,null,null,0]
[null,null,null,null,null,null,null,null,null,null,null,null,{"$f":"SUM(F421+H421+J421+L421)","v":0}]
[null,null,null,null,null,null,null,null,null,null,null,null,0]
[null,null,null,null,null,null,null,null,null,null,null,null,{"$f":"SUM(F423+H423+J423+L423)","v":0}]
[null,null,null,null,null,null,null,null,null,null,null,null,0]
["DHRC HUNTER DERBY  (No points) (Cash Payout at 4th show)"]
[null,288,"Sarah Bartlett","Lady Gypsy in Gold","2nd",6,"4th",6,"3rd",7,"3rd",0,{"$f":"SUM(F426+H426+J426+L426)","v":19}]
[null,289,"Elizabeth Cohen","Julana","1st",7,"X",null,"1st",9,"1st",0,16]
[null,341,"Trinity Donovan","Park place","E",null,"2nd",8,"8th",2,"5th",0,10]
[null,292,"Ashley Todd","Daisy","E",null,"6th",4,"4th",6,"7th",0,10]
[null,340,"Danika Smith","Heidi","X",null,"1st",9,"X",null,"10th",0,9]
[null,197,"Jillian Malanka","Mellow Yellow","X",null,"5th",5,"6th",4,"4th",0,9]
[null,287,"Jessica Bartlett","Scout","3rd",5,"8th",2,"9th",1,"9th",0,8]
[null,371,"Hailey Kenney","Just Put Them Up","X",null,"X",null,"2nd",8,"X",null,8]
[null,null,"Elizabeth Cohen","Gus","X",null,"3rd",7,"X",null,"X",null,7]
[null,346,"Cassandra Carpenter","Rio Got Played","X",null,"7th",3,"7th",3,"8th",0,6]
[null,293,"Vishnu Vardhan","Gus","E",null,"E",null,"5th",5,"2nd",0,5]
[null,334,"Brittany Fex","WRITTEN IN CHOCOLATE","srtch",null,"X",null,"X",null,"X",null,0]
[null,328,"Breanna Lyons","Buckshot","E",null,"X",null,"X",null,"X",null,0]
[null,147,"Danielle Avery","Playing With Fire","X",null,"scrtch",null,"X",null,"X",null,0]
["***",154,"Taylor Jessup","Just Put Them Up","X",null,"X",null,"X",null,"6th",0,{"$f":"SUM(F440+H440+J440+L440)","v":0}]
[null,null,null,null,null,null,null,null,null,null,null,null,0]
[null,null,null,null,null,null,null,null,null,null,null,null,0]
[null,null,null,null,null,null,null,null,null,null,null,null,0]
[null,null,null,null,null,null,null,null,null,null,null,null,0]
[null,null,null,null,null,null,null,null,null,null,null,null,0]
[null,null,null,null,null,null,null,null,null,null,null,null,0]
[null,null,null,null,null,null,null,null,null,null,null,null,0]
[null,null,null,null,null,null,null,null,null,null,null,null,0]

{"sheet":"Western Games","index":3,"n_rows":154,"n_cols":24,"rows_kept":154,"cut":false,"hidden":false,"merged":[[99,13,99,14],[58,13,58,14],[85,13,85,14],[84,13,84,14],[74,0,74,12],[84,0,84,12],[154,0,154,12],[0,19,2,22],[9,0,9,12],[0,4,0,11],[2,13,2,14],[3,13,3,14],[2,0,2,12],[3,0,3,12],[25,13,25,14],[18,13,18,14],[9,13,9,14],[43,13,43,14],[26,13,26,14],[0,23,2,25],[142,0,142,12],[111,0,111,12],[112,0,112,12],[121,0,121,12],[133,0,133,12],[134,0,134,12],[85,0,85,12],[100,0,100,12],[18,0,18,12],[26,0,26,12],[43,0,43,12],[58,0,58,12],[59,0,59,12],[59,13,59,14],[74,13,74,14]]}
[null,null,null,null,"PLACINGS",null,null,null,null,null,null,null,"TOTAL ",null,null,"\"X\" is not entered",null,null,null,"Reminder: ONLY  riders who are DHRC members (year membership) qualify for Year-End Awards",null,null,null,"*  Qualifies for Year End Awards"]
[null,"Exhibitor#","EXHIBITOR","HORSE","2019-06-23","pts","2019-07-14","pts","2019-07-28","pts","2019-08-11","pts","POINTS","Champion","Reserve","\"srtch\" scratched the class"]
["COWBOY OBSTACLE RACE",null,null,null,null,null,null,null,null,null,null,null,null,null,null,"\"DQ\"  disqualified"]
["50 - Novice Adult"]
["*",17,"Lindsay Wiggins","Mr Big Time Money","1st",1,"1st",1,"1st",1,"srtch",null,{"$f":"F5+H5+J5+L5","v":3}]
[null,368,"Debbie Baldwin","Just Put Them Up","X",null,"X",null,"X",null,"1st",1,{"$f":"F6+H6+J6+L6","v":1}]
[null,null,null,null,null,null,null,null,null,null,null,null,{"$f":"F7+H7+J7+L7","v":0}]
[null,null,null,null,null,null,null,null,null,null,null,null,{"$f":"F8+H8+J8+L8","v":0}]
[null,null,null,null,null,null,null,null,null,null,null,null,{"$f":"F9+H9+J9+L9","v":0}]
["51 - Youth"]
[null,348,"Katie Mbakulo","Indy","X",null,"1st",1,"X",null,"X",null,{"$f":"F11+H11+J11+L11","v":1}]
[null,null,null,null,"X",null,"X",null,"X",null,"X",null,{"$f":"F12+H12+J12+L12","v":0}]
[null,null,null,null,"X",null,"X",null,"X",null,"X",null,{"$f":"F13+H13+J13+L13","v":0}]
[null,null,null,null,"X",null,"X",null,"X",null,"X",null,{"$f":"F14+H14+J14+L14","v":0}]
[null,null,null,null,"X",null,"X",null,"X",null,"X",null,{"$f":"F15+H15+J15+L15","v":0}]
[null,null,null,null,null,null,null,null,null,null,null,null,0]
[null,null,null,null,null,null,null,null,null,null,null,null,0]
[null,null,null,null,null,null,null,null,null,null,null,null,0]
["52 - Open Adult"]
["*",71,"Corey Wendelken","Mr Big Time Money","1st",1,"3rd",1,"1st",1,"1st",1,{"$f":"F20+H20+J20+L20","v":4}]
[null,46,"Andre Bourck","Nick","X",null,"1st",3,"X",null,"X",null,{"$f":"F21+H21+J21+L21","v":3}]
[null,533,"Andre Bourck","Frosty All Starlight","X",null,"2nd",2,"X",null,"X",null,{"$f":"F22+H22+J22+L22","v":2}]
[null,null,null,null,null,null,null,null,null,null,null,null,{"$f":"F23+H23+J23+L23","v":0}]
[null,null,null,null,null,null,null,null,null,null,null,null,{"$f":"F24+H24+J24+L24","v":0}]
[null,null,null,null,null,null,null,null,null,null,null,null,{"$f":"F25+H25+J25+L25","v":0}]
["BARREL DIVISION"]
["53 - Youth"]
["*",347,"Leah Prosper","Topper","2nd",2,"1st",4,"1st",3,"X",null,{"$f":"F28+H28+J28+L28","v":9}]
[null,343,"Priscilla Munevar-Pelton","Tally-Ho","3rd",1,"2nd",3,"2nd",2,"X",null,6]
[null,194,"Clare Scharf","Catch My Draft","X",null,"X",null,"X",null,"1st",5,5]
[null,242,"Brie Brussieres","Bambi","X",null,"X",null,"X",null,"2nd",4,4]
[null,325,"Brooklyn Burke","Gimme Some Treasure","1st",3,"X",null,"X",null,"X",null,3]
[null,241,"Kylie Brown","Hollywood","X",null,"X",null,"X",null,"3rd",3,3]
[null,167,"Rorie Duff","Lily","X",null,"3rd",2,"X",null,"X",null,2]
[null,335,"Mattea Pantelone","Hollywood","X",null,"X",null,"X",null,"4th",2,2]
[null,133,"Brie Brussieres","Hollywood","X",null,"4th",1,"X",null,"X",null,1]
[null,null,"Eva Rose","Dream's My Dad","X",null,"X",null,"3rd",1,"X",null,1]
[null,369,"Maycie Linton","Just Put Them Up","X",null,"X",null,"X",null,"DQ",null,0]
[null,null,null,null,null,null,null,null,null,null,null,null,0]
[null,null,null,null,null,null,null,null,null,null,null,null,{"$f":"F40+H40+J40+L40","v":0}]
[null,null,null,null,null,null,null,null,null,null,null,null,{"$f":"F41+H41+J41+L41","v":0}]
[null,null,null,null,null,null,null,null,null,null,null,null,{"$f":"F42+H42+J42+L42","v":0}]
[null,null,null,null,null,null,null,null,null,null,null,null,{"$f":"F43+H43+J43+L43","v":0}]
["54 - Adult"]
["*",94,"Robyn Argue","Eyes in Overdrive","1st",4,"1st",4,"1st",4,"1st",4,{"$f":"F45+H45+J45+L45","v":16}]
["*",390,"Robyn Argue","React In Goodway","X",null,"4th",1,"2nd",3,"3rd",2,6]
["*",345,"Donna Livingston","Juice","4th",1,"3rd",2,"4th",1,"X",null,4]
[null,128,"Renee Armstrong","Jista Prince Robin","2nd",3,"X",null,"X",null,"X",null,3]
[null,120,"Isabella Munevar-Pelton","Tally-Ho","X",null,"2nd",3,"X",null,"X",null,3]
[null,211,"Allie Argue","Concert Over","X",null,"X",null,"X",null,"2nd",3,3]
[null,129,"Melissa Leduc","Liberty","3rd",2,"X",null,"X",null,"X",null,2]
[null,28,"Trish Edge","All Points Black","X",null,"X",null,"3rd",2,"X",null,2]
[null,240,"Brittany Fex","Finn McCool","X",null,"X",null,"X",null,"4th",1,1]
[null,null,null,null,null,null,null,null,null,null,null,null,0]
[null,null,null,null,null,null,null,null,null,null,null,null,{"$f":"F55+H55+J55+L55","v":0}]
[null,null,null,null,null,null,null,null,null,null,null,null,{"$f":"F56+H56+J56+L56","v":0}]
[null,null,null,null,null,null,null,null,null,null,null,null,{"$f":"F57+H57+J57+L57","v":0}]
[null,null,null,null,null,null,null,null,null,null,null,null,{"$f":"F58+H58+J58+L58","v":0}]
["POLE BENDING  DIVISION"]
["55 - Youth"]
["*",347,"Leah Prosper","Topper","2nd",1,"1st",4,"2nd",3,"X",null,{"$f":"F61+H61+J61+L61","v":8}]
[null,343,"Priscilla Munevar-Pelton","Tally-Ho","1st",2,"3rd",2,"1st",4,"X",null,8]
[null,243,"Sabia Smith","Bambi","X",null,"X",null,"X",null,"1st",4,4]
[null,167,"Rorie Duff","Lily","X",null,"2nd",3,"X",null,"X",null,3]
[null,242,"Brie Brussieres","Bambi","X",null,"X",null,"X",null,"2nd",3,3]
[null,376,"Brie Brussieres","Heidi","X",null,"X",null,"3rd",2,"X",null,2]
[null,335,"Mattea Pantelone","Hollywood","X",null,"X",null,"X",null,"3rd",2,2]
[null,133,"Brie Brussieres","Hollywood","X",null,"4th",1,"X",null,"X",null,1]
[null,375,"Eva Rose","Miss Molly","X",null,"X",null,"4th",1,"X",null,1]
[null,241,"Kylie Brown","Hollywood","X",null,"X",null,"X",null,"4th",1,1]
[null,null,null,null,null,null,null,null,null,null,null,null,0]
[null,null,null,null,null,null,null,null,null,null,null,null,{"$f":"F72+H72+J72+L72","v":0}]
[null,null,null,null,null,null,null,null,null,null,null,null,0]
[null,null,null,null,null,null,null,null,null,null,null,null,{"$f":"F74+H74+J74+L74","v":0}]
["56 - Adult"]
["*",94,"Robyn Argue","Eyes in Overdrive","1st",3,"2nd",1,"1st",4,"2nd",2,{"$f":"F76+H76+J76+L76","v":10}]
["*",345,"Donna Livingston","Juice","3rd",1,"1st",2,"4th",1,"X",null,4]
[null,390,"Robyn Argue","React In Goodway","X",null,"X",null,"2nd",3,"3rd",1,4]
[null,211,"Allie Argue","Concert Over","X",null,"X",null,"X",null,"1st",3,3]
[null,128,"Renee Armstrong","Jista Prince Robin","2nd",2,"X",null,"X",null,"X",null,2]
[null,28,"Trish Edge","All Points Black","X",null,"X",null,"3rd",2,"X",null,2]
[null,null,null,null,null,null,null,null,null,null,null,null,0]
[null,null,null,null,null,null,null,null,null,null,null,null,{"$f":"F83+H83+J83+L83","v":0}]
[null,null,null,null,null,null,null,null,null,null,null,null,{"$f":"F84+H84+J84+L84","v":0}]
["KEY HOLE  DIVISION"]
["57 - Youth"]
[null,343,"Priscilla Munevar-Pelton","Tally-Ho","DQ",null,"1st",4,"1st",4,"X",null,{"$f":"F87+H87+J87+L87","v":8}]
["*",347,"Leah Prosper","Topper","1st",2,"2nd",3,"2nd",3,"X",null,8]
[null,242,"Brie Brussieres","Bambi","X",null,"X",null,"X",null,"1st",3,3]
[null,167,"Rorie Duff","Lily","X",null,"3rd",2,"X",null,"X",null,2]
[null,null,"Eva Rose","Dream's My Dad","X",null,"X",null,"3rd",2,"X",null,2]
[null,335,"Mattea Pantelone","Hollywood","X",null,"X",null,"X",null,"2nd",2,2]
[null,133,"Brie Brussieres","Hollywood","X",null,"4th",1,"X",null,"X",null,1]
[null,376,"Brie Brussieres","Heidi","X",null,"X",null,"4th",1,"X",null,1]
[null,241,"Kylie Brown","Hollywood","X",null,"X",null,"X",null,"3rd",1,1]
[null,null,null,null,null,null,null,null,null,null,null,null,{"$f":"F96+H96+J96+L96","v":0}]
[null,null,null,null,null,null,null,null,null,null,null,null,0]
[null,null,null,null,null,null,null,null,null,null,null,null,0]
[null,null,null,null,null,null,null,null,null,null,null,null,0]
[null,null,null,null,null,null,null,null,null,null,null,null,{"$f":"F100+H100+J100+L100","v":0}]
["58 - Adult"]
["*",94,"Robyn Argue","Eyes in Overdrive","1st",3,"2nd",2,"DQ",null,"1st",3,{"$f":"F102+H102+J102+L102","v":8}]
["*",345,"Donna Livingston","Juice","3rd",1,"3rd",1,"1st",4,"X",null,6]
[null,390,"Robyn Argue","React In Goodway","X",null,"X",null,"3rd",2,"2nd",2,4]
[null,120,"Isabella Munevar-Pelton","Tally-Ho","X",null,"1st",3,"X",null,"X",null,3]
[null,28,"Trish Edge","All Points Black","X",null,"X",null,"2nd",3,"X",null,3]
[null,129,"Melissa Leduc","Liberty","2nd",2,"X",null,"X",null,"X",null,2]
[null,211,"Allie Argue","Concert Over","X",null,"X",null,"X",null,"3rd",1,1]
[null,null,null,null,null,null,null,null,null,null,null,null,0]
[null,null,null,null,null,null,null,null,null,null,null,null,{"$f":"F110+H110+J110+L110","v":0}]
[null,null,null,null,null,null,null,null,null,null,null,null,0]
["DASH  DIVISION"]
["59 - Adult"]
["*",94,"Robyn Argue","Eyes in Overdrive","X",null,"3rd",1,"1st",3,"2nd",2,{"$f":"F114+H114+J114+L114","v":6}]
["*",345,"Donna Livingston","Juice","X",null,"2nd",2,"2nd",2,"X",null,4]
[null,120,"Isabella Munevar-Pelton","Tally-Ho","X",null,"1st",3,"X",null,"X",null,3]
[null,211,"Allie Argue","Concert Over","X",null,"X",null,"X",null,"1st",3,3]
[null,390,"Robyn Argue","React In Goodway","X",null,"X",null,"3rd",1,"3rd",1,2]
[null,null,null,null,"X",null,null,null,null,null,null,null,0]
[null,null,null,null,"X",null,null,null,null,null,null,null,0]
[null,null,null,null,"X",null,null,null,null,null,null,null,0]
["60 - Youth"]
["*",347,"Leah Prosper","Topper","X",null,"1st",3,"1st",4,"X",null,{"$f":"F123+H123+J123+L123","v":7}]
[null,243,"Sabia Smith","Bambi","X",null,"X",null,"X",null,"1st",4,4]
[null,343,"Priscilla Munevar-Pelton","Tally-Ho","X",null,"X",null,"2nd",3,"X",null,3]
[null,242,"Brie Brussieres","Bambi","X",null,"X",null,"X",null,"2nd",3,3]
[null,167,"Rorie Duff","Lily","X",null,"2nd",2,"X",null,"X",null,2]
[null,375,"Eva Rose","Miss Molly","X",null,"X",null,"3rd",2,"X",null,2]
[null,241,"Kylie Brown","Hollywood","X",null,"X",null,"X",null,"3rd",2,2]
[null,133,"Brie Brussieres","Hollywood","X",null,"3rd",1,"X",null,"X",null,1]
[null,376,"Brie Brussieres","Heidi","X",null,"X",null,"4th",1,"X",null,1]
[null,335,"Mattea Pantelone","Hollywood","X",null,"X",null,"X",null,"4th",1,1]
[null,null,null,null,"X",null,null,null,null,null,null,null,0]
["FLAG  DIVISION"]
["61 - Adult"]
["*",345,"Donna Livingston","Juice","X",null,"1st",3,"1st",2,"X",null,{"$f":"F136+H136+J136+L136","v":5}]
["*",94,"Robyn Argue","Eyes in Overdrive","X",null,"DQ",null,"2nd",1,"DQ",null,{"$f":"F137+H137+J137+L137","v":1}]
[null,120,"Isabella Munevar-Pelton","Tally-Ho","X",null,"DQ",null,"X",null,"X",null,{"$f":"F138+H138+J138+L138","v":0}]
[null,368,"Debbie Baldwin","Just Put Them Up","X",null,"X",null,"X",null,"DQ",null,0]
[null,null,null,null,"X",null,null,null,null,null,null,null,0]
[null,null,null,null,"X",null,null,null,null,null,null,null,0]
[null,null,null,null,"X",null,null,null,null,null,null,null,{"$f":"F142+H142+J142+L142","v":0}]
["62 - Youth"]
["*",347,"Leah Prosper","Topper","X",null,"2nd",3,"2nd",2,"X",null,{"$f":"F144+H144+J144+L144","v":5}]
[null,356,"Priscilla Munevar-Pelton","Tally-Ho","X",null,"1st",4,"X",null,"X",null,4]
[null,242,"Brie Brussieres","Bambi","X",null,"X",null,"X",null,"1st",4,4]
[null,343,"Priscilla Munevar-Pelton","Tally-Ho","X",null,"X",null,"1st",3,"X",null,3]
[null,369,"Maycie Linton","Just Put Them Up","X",null,"X",null,"X",null,"2nd",3,3]
[null,133,"Brie Brussieres","Hollywood","X",null,"3rd",2,"X",null,"X",null,2]
[null,241,"Kylie Brown","Hollywood","X",null,"X",null,"X",null,"3rd",2,2]
[null,376,"Brie Brussieres","Heidi","X",null,"X",null,"3rd",1,"X",null,1]
[null,167,"Rorie Duff","Lily","X",null,"DQ",null,"X",null,"X",null,0]
[null,335,"Mattea Pantelone","Hollywood","X",null,"X",null,"X",null,"DQ",null,0]
[null,null,null,null,"X",null,null,null,null,null,null,null,0]